{"text_format":"1","workbook":"xlsx","n_sheets":8,"sheets":["サンプルの発送方法","【A】Sequencing information","【B】Sample information","【C】index information","【D】Comparison Pair information","【E】Sample Prep. information","サンプル条件一覧","マクロジェン使用欄"],"not_rendered":{"charts":0,"images":7,"macros":1,"external_links":0,"defined_names":54,"comments":0,"pivot_tables":0},"unopened":[],"bounds":{"document_bytes":16777216,"sheet_cells":100000,"rows_first":2000,"rows_last":500,"rows_between":2000,"halvings":0,"cell_chars":16384,"cell_head_chars":4096},"cells_cut":0,"cells_raw":0,"read":"whole","date_system":"1900"}

{"sheet":"サンプルの発送方法","index":0,"n_rows":63,"n_cols":18,"rows_kept":63,"cut":false,"hidden":false,"merged":[[34,0,34,9]]}
["サンプル発送準備の注意事項"]
[]
[]
[]
[]
[]
[]
[]
[]
[]
[]
[]
["１）弊社で指定するチューブはございませんが、なるべく1.5mlもしくは2mlチューブをお使いください。"]
[]
["２）サンプル名もしくはTube IDをサンプルチューブの蓋に正しく記載をお願い致します。"]
["　　サンプル名とチューブの蓋に記載されている名前が異なる場合は、Tube IDを【B】Sample informationに記載してください。"]
["　　Tube ID・サンプル名には記号や日本語の記載は行わず、アルファベットもしくは数字のみを使用してください。"]
[]
["３）液量は可能な限り多めにご準備をお願い致します。微量の場合、輸送時に蒸発する場合がございます。"]
[]
["４）チューブに破損が無いことを確認し、チューブの蓋はしっかりと締めてください。"]
[null,null,null,null,null,null,null,null,null,null,null,null,null,null,"※Sample nameはイメージとなります。"]
["５）チューブは小箱に【B】シートに記載の順に並べて入れてください。箱の周りは緩衝材で保護してください。"]
["　　小箱やチューブ立てが無い場合は緩衝材で十分にくるんでご送付をお願い致します。",null,null,null,null,null,null,null,null,null,null,null,null,null,"サンプル発送費用"]
["　　緩衝材が無い場合、ドライアイスや保冷材にチューブが挟まり、チューブが破損する可能性がございます。",null,null,null,null,null,null,null,null,null,null,null,null,null,"・サンプルは着払いでお送りいただけます。（MiSeqの場合はご確認ください）"]
[null,null,null,null,null,null,null,null,null,null,null,null,null,null,"・弊社へサンプルを送付される際、海外からの輸送や特殊・高額な輸送方法（臨床検体用の専門輸送等）は、"]
["６）サンプルがDNA/調整済ライブラリの場合はスチロールボックスに保冷剤を同梱してください。",null,null,null,null,null,null,null,null,null,null,null,null,null,"　お客様のご負担（元払い）でお願い致します。"]
["　　サンプルがRNAもしくは組織/細胞サンプルの場合はスチロールボックスにドライアイスを十分同梱してください。",null,null,null,null,null,null,null,null,null,null,null,null,null,"※通常輸送はヤマト運輸/佐川急便/ゆうパック/日通航空等の基本クール宅配便を想定しております。"]
[]
["７）オーダーシート（【A】Sequencing information Sheet、【B】Sample information Sheet）と発送内容確認書を",null,null,null,null,null,null,null,null,null,null,null,null,null,"サンプルの発送先住所、電話番号"]
["　　印刷いただき、サンプルに同梱してください。",null,null,null,null,null,null,null,null,null,null,null,null,null,"〒135-0064"]
[null,null,null,null,null,null,null,null,null,null,null,null,null,null,"東京都江東区青海2丁目4番32号"]
["８）輸送時の揺れによる衝撃をやわらげるため、緩衝材でしっかりスペースを埋めてください。",null,null,null,null,null,null,null,null,null,null,null,null,null,"タイム24ビル16F"]
[null,null,null,null,null,null,null,null,null,null,null,null,null,null,"㈱マクロジェン・ジャパン　NGSサービス係行"]
["９）作成いただいたオーダーシートはjutaku_gr@cosmobio.co.jp宛に電子ファイルもお送りください。",null,null,null,null,null,null,null,null,null,null,null,null,null,"Tel:03-5962-1124   Fax:03-5962-1128"]
[]
[null,null,null,null,null,null,null,null,null,null,null,null,null,null,"土日・祝日のサンプル受け取りができません。平日9:00～18:00の間に届くようにお送りください。"]
[null,null,null,null,null,null,null,null,null,null,null,null,null,null,"DNAサンプルは冷蔵便でお送りいただけます。"]
[null,null,null,null,null,null,null,null,null,null,null,null,null,null,"RNAサンプルは必ず冷凍便でお送りください。"]
[]
[]
[]
[]
[]
[]
[]
[]
[]
[]
[]
[]
[]
[]
[]
[]
[]
[]
[]
[]
[]
[]
[]
[null,null,null,null,null,null,null,null,null,null,null,null,null,null,null,null,null,"※サンプル名およびTube IDはイメージとなります。"]

{"sheet":"【A】Sequencing information","index":1,"n_rows":60,"n_cols":6,"rows_kept":60,"cut":false,"hidden":false,"merged":[[11,0,11,3],[59,0,59,8],[5,0,5,4],[3,0,3,5],[26,1,26,2],[25,1,25,2],[10,1,10,2],[7,1,7,2],[8,1,8,2],[23,1,23,2],[53,0,53,8],[9,1,9,2],[19,1,19,2],[20,1,20,2],[22,1,22,2],[24,1,24,2],[14,1,14,2],[15,1,15,2],[16,1,16,2],[17,1,17,2],[18,1,18,2],[56,0,56,3],[55,0,55,3],[33,0,33,3],[29,0,31,3],[54,0,54,6],[27,1,27,2],[40,0,41,3],[43,0,43,3],[44,0,49,3],[50,0,51,3],[28,0,28,3],[34,0,39,3]]}
["Macrogen Japan NGS Service Order Sheet 3.1"]
["赤枠は必須項目です。全ての項目をご記入ください。"]
["サンプルによってシーケンス条件が異なる場合、ご請求を分割する必要がある場合は、条件ごとにオーダーシートを作成ください。"]
["サンプル発送時にこのファイルを jutaku_gr@cosmobio.co.jp 宛にお送りください。"]
["【A】Sequencing informationと【B】Sample information シートは印刷後、サンプルに同梱いただきますようお願い申し上げます。"]
["お客様IDをお持ちでない場合はこちらからユーザー登録をお願い致します。"]
[]
["お客様ID","MJ19100309616",null,null,null,{"$f":"IF(OR(B15=\"NovaSeq6000\",B15=\"NovaSeq_X_Plus\",B15=\"MiSeq\",B15=\"PacBio_Revio\"),\"J\",\"K\")","v":"K"}]
["ご氏名",null,null,null,null,{"$f":"IF(OR(B16=\"Whole_Genome_Sequencing \",B16=\"Library_Sequencing\",B16=\"Exome_Sequencing\",B16=\"Transcriptome_Sequencing\",B16=\"Metagenome_Shotgun_Sequencing\",B16=\"Metagenome_16s_18s_Sequencing\",B16=\"Amplicon_Sequencing\"),\"J\",\"K\")","v":"K"}]
["代理店名","コスモ・バイオ（株）",null,null,null,{"$f":"IF(OR(B17=\"TruSeq DNA PCR-free Library\",B17=\"TruSeq Nano DNA Library\",B17=\"TruSeq stranded mRNA Library\",B17=\"TruSeq stranded Total RNA / Ribo-zero Plus\",B17=\"TruSeq RNA Exome(Access)\",B17=\"SMRTbell Prep Kit\",B17=\"SureSelect Human V6\",B17=\"調製済み\",B17=\"16S rRNA(V3-V4)　1stPCRから\",B17=\"18S rRNA(ITS)　1stPCRから\",B17=\"Amplicon　2ndPCRから\"),\"J\",\"K\")","v":"K"}]
["代理店担当者",null,null,null,null,{"$f":"IF(OR(B24=\"Raw Data\",B24=\"SNP/Short INDEL解析\",B24=\"SNP+SV+CNV\",B24=\"DEG\",B24=\"DEG + Splicing\",B24=\"DEG + Splicing + Fusion Gene\",B24=\"Mapping\",B24=\"FPKM/TPM\"),\"J\",\"K\")","v":"K"}]
["こちらから弊社プライバシーポリシーをご確認いただき、ご同意の上ご発注ください。",null,null,null,null,{"$f":"IF(OR(C22=\"lane/Run/Cell\",C22=\"Gb/sample\"),\"J\",\"K\")","v":"K"}]
[]
[]
["Platform","選択してください",null,{"$f":"IF(B15=\"選択してください\",\"\",VLOOKUP(B15,マクロジェン使用欄!$A$156:$B$163,2,FALSE))","v":""}]
["Application","選択してください",null,{"$f":"IF(B16=\"選択してください\",\"\",VLOOKUP(B16,マクロジェン使用欄!$P$1:$Q$14,2,FALSE))","v":""}]
["Library Prep. Kit","選択してください",null,{"$f":"IF(B17=\"選択してください\",\"\",VLOOKUP(B17,マクロジェン使用欄!$A$37:$B$75,2,FALSE))","v":""}]
["備考"]
["シーケンス方法","選択してください",null,{"$f":"IF(B19=\"選択してください\",\"\",VLOOKUP(B19,マクロジェン使用欄!$D$32:$E$34,2,FALSE))","v":""}]
["Layout","選択してください"]
["Read Length","選択してください",null,{"$f":"IF(B21=\"選択してください\",\"\",VLOOKUP(B21,マクロジェン使用欄!$A$26:$B$32,2,FALSE))","v":""}]
["Run Scale",null,"選択してください",{"$f":"IF(C22=\"選択してください\",\"\",VLOOKUP(C22,マクロジェン使用欄!$D$35:$E$39,2,FALSE))","v":""}]
["Sample Number"]
["Data Analysis","選択してください",null,{"$f":"IF(B24=\"選択してください\",\"\",VLOOKUP(B24,マクロジェン使用欄!A76:B98,2,FALSE))","v":""}]
["納品形態","選択してください",null,{"$f":"IF(B25=\"選択してください\",\"\",VLOOKUP(B25,マクロジェン使用欄!A99:B101,2,FALSE))","v":""}]
["実験進行","選択してください",null,{"$f":"IF(B26=\"選択してください\",\"\",VLOOKUP(B26,マクロジェン使用欄!A133:B134,2,FALSE))","v":""}]
["サンプル返送","選択してください",null,{"$f":"IF(B27=\"選択してください\",\"\",VLOOKUP(B27,マクロジェン使用欄!A103:B104,2,FALSE))","v":""}]
["希望納期","yyyy/mm/dd"]
[{"$f":"IF(B24=\"選択してください\",\"\",IF(B24=\"Raw Data\",\"\",\"弊社で使用しますリファレンスとアノテーションファイルは不定期に更新を致します。以前の案件と連携するデータ解析をご希望の場合は必ず事前にご相談下さい。\"))","v":""}]
["本シートご記入後、【B】Sample informationシートもご記入ください\nサンプルの条件や発送方法に関しましては各シートをご参照ください\nお預かりしたサンプル及び解析データの保管期間は解析結果発送後3ヵ月までです"]
[]
[]
[]
["データ解析備考欄"]
[]
[]
[]
[]
[]
[]
["※データ解析時に、リファレンスの指定がある際はこちらにデータベースのURLをご記入ください。\n　選択項目にないデータ解析をご希望の際はこちらにご記入ください。その際は必ず弊社担当者に事前にご相談ください。\n　DEG解析をご希望の場合は【D】Comparison Pair informationシートも必ずご記入ください。"]
[]
[]
["特記事項"]
[]
[]
[]
[]
[]
[]
["※ご依頼に関する特記事項がある場合はこちらにご記入ください。\n　ご請求に関する特記事項がある際もこちらにご記入ください。"]
[]
[{"$f":"IF(AND(F8=\"J\",F9=\"J\",F10=\"J\",F11=\"J\",F12=\"J\"),\"J\",\"K\")","v":"K"}]
["※解析の途中でご依頼をキャンセルされた場合は、進行した実験までの費用をご請求させていただきます。\n　サンプルQCまで行った際はサンプルQC費用を、ライブラリーQCまで行った際はライブラリー調製費用のご請求となります。"]
["※サンプルQCがHoldもしくはFail判定だった場合、結果ご報告後3ヵ月以内に実験の進行のご指示がなく、また、\n　サンプルの再送がなかった場合はご依頼をキャンセルとさせていただき、サンプルQC費用をご請求させていただきます。"]
["※サンプルQCでPass判定でなかったサンプルで実験進行のご指示をいただいた場合は、\n　結果の如何に関わらず、進行した実験までの費用をご請求させていただきます。"]
["※輸送中や実験上の不測のトラブルによりサンプルの損失があった場合、再送をお願いする場合がございます。\n　サンプルの損失について補償はございませんのでご了承下さい。"]
[]
["※受託サービスの結果としての技術情報等は依頼主に帰属します。"]
["※弊社が受託サービスの実施により取得した発明等の知的財産権、その他サービスの結果から得られた一切の権利、知見は依頼主に帰属します。\n　但し、本業務遂行上の技術的手法に係るものは弊社に帰属します。"]

{"sheet":"【B】Sample information","index":2,"n_rows":34,"n_cols":8,"rows_kept":34,"cut":false,"hidden":false,"merged":[[2,0,2,1],[11,2,12,2],[2,2,2,5],[3,2,3,5],[4,2,4,5],[5,2,5,5],[6,2,6,5],[7,2,7,5],[3,0,3,1],[5,0,5,1],[6,0,6,1],[7,0,7,1],[4,0,4,1],[11,4,12,4],[11,5,12,5],[11,6,12,6],[11,7,12,7],[9,0,9,7],[11,0,12,0],[11,1,12,1]]}
["Macrogen Japan NGS Service Sample Information Sheet"]
["赤枠は必須項目です。必ずご記入ください。"]
["発送種類",null,"選択してください"]
["サンプル生物種",null,"選択してください"]
["サンプル学名"]
["サンプル種類",null,"選択してください",null,null,null,{"$f":"IF(C6=\"選択してください\",\"\",VLOOKUP(C6,マクロジェン使用欄!$A$110:$B$123,2,FALSE))","v":""}]
["サンプルの由来",null,"選択してください"]
["発送サンプル(チューブ)数"]
[]
["調製済みライブラリをお送りいただく際はプーリングしたチューブの情報をご記入ください。\n個別のサンプル情報は【C】index informationシートにご記入ください。\nTube IDの欄には、実際のTube topに記載されている名前、番号をご記入ください。"]
[]
["Item No.","Sample name\n(15文字以内)","Tube ID","濃度(選択してください)","液量\n(ul)","純度 \n(A260/280)","溶出バッファー \n(Elution Buffer)","エタノール\n沈殿状態"]
[null,null,null,"測定方法(選択して下さい)"]
["例","Test1",1,20,50,1.82,"H2O","-"]
[1,null,null,null,null,null,null,"-"]
[2,null,null,null,null,null,null,"-"]
[3,null,null,null,null,null,null,"-"]
[4,null,null,null,null,null,null,"-"]
[5,null,null,null,null,null,null,"-"]
[6,null,null,null,null,null,null,"-"]
[7,null,null,null,null,null,null,"-"]
[8,null,null,null,null,null,null,"-"]
[9,null,null,null,null,null,null,"-"]
[10,null,null,null,null,null,null,"-"]
[11,null,null,null,null,null,null,"-"]
[12,null,null,null,null,null,null,"-"]
[13,null,null,null,null,null,null,"-"]
[14,null,null,null,null,null,null,"-"]
[15,null,null,null,null,null,null,"-"]
[16,null,null,null,null,null,null,"-"]
[17,null,null,null,null,null,null,"-"]
[18,null,null,null,null,null,null,"-"]
[19,null,null,null,null,null,null,"-"]
[20,null,null,null,null,null,null,"-"]

{"sheet":"【C】index information","index":3,"n_rows":390,"n_cols":7,"rows_kept":390,"cut":false,"hidden":false,"merged":[[14,0,15,0],[14,1,15,1],[6,0,6,1],[6,2,6,3],[9,0,9,3],[7,0,7,1],[7,2,7,3],[8,0,8,1],[11,1,11,3],[1,0,1,3],[2,0,2,3],[4,0,4,1],[4,2,4,3],[5,0,5,1],[5,2,5,3],[3,0,3,1],[3,2,3,3]]}
["こちらのシートは調製済みライブラリをサンプルとしてご提供いただくお客様のみご記入ください。"]
["Macrogen Japan NGS Service index imformation sheet"]
["＜注意事項＞\n・赤枠は必須項目となります。全ての項目をご記入ください。\n・1つのpoolingライブラリにつき1シートのご準備をお願いします。\n・複数ライブラリーをご送付いただく際はこちらのシートのコピーをお願いします。\n・ライブラリサンプルはシーケンスlane単位で1本のチューブにおまとめ頂きご発送ください。\n・Single indexの場合はi5側は空欄でお願いします。\n・10x Chromiumで作成されたライブラリーのように、1サンプルにつき複数indexがある場合は、\n　右図の様に1サンプルで複数行を使用して、i7側にそれぞれのindex配列をご記入下さい。"]
["サンプルチューブ名"]
["ライブラリ調製キット名:\n※使用が無ければ「無し」と記載をお願い致します。"]
["Library Size(bp): "]
["PhiX添加必要量(%):\n※弊社で添加をご希望の場合(無償)\n※添加しない場合は0とご記入ください"]
["Poolingサンプル数"]
["サンプルが10x genomics社 Chromiumで\n調製されたライブラリーの場合"]
[]
[]
[]
[]
[null,"Sample Name(15文字以内)","i5側index配列","i7側index配列"]
["例","macrogen-1","機種にかかわらず、MiSeq,HiSeq2000/2500,\nNovaSeq v1.0側に記載の配列をご記入ください。","i7 Bases for Sample Sheet\nに記載のある配列をご記入ください。"]
[null,null,"TAGATCGC","TCGCCTTA"]
[1,null,null,null,{"$f":"IF(COUNTIF($B$17:$B390,B17)>1,\"サンプル名が重複しています\",\"\")","v":""},{"$f":"IF(D17=\"\",\"\",IF(D17>1,C17&D17))","v":""},{"$f":"IF(F17=\"\",\"\",IF(COUNTIF($F$17:$F$390,F17)>1,\"indexが重複しています\",\"\"))","v":""}]
[2,null,null,null,{"$f":"IF(COUNTIF($B$17:$B391,B18)>1,\"サンプル名が重複しています\",\"\")","v":""},{"$f":"IF(D18=\"\",\"\",IF(D18>1,C18&D18))","v":""},{"$f":"IF(F18=\"\",\"\",IF(COUNTIF($F$17:$F$390,F18)>1,\"indexが重複しています\",\"\"))","v":""}]
[3,null,null,null,{"$f":"IF(COUNTIF($B$17:$B392,B19)>1,\"サンプル名が重複しています\",\"\")","v":""},{"$f":"IF(D19=\"\",\"\",IF(D19>1,C19&D19))","v":""},""]
[4,null,null,null,{"$f":"IF(COUNTIF($B$17:$B393,B20)>1,\"サンプル名が重複しています\",\"\")","v":""},{"$f":"IF(D20=\"\",\"\",IF(D20>1,C20&D20))","v":""},""]
[5,null,null,null,{"$f":"IF(COUNTIF($B$17:$B394,B21)>1,\"サンプル名が重複しています\",\"\")","v":""},"",""]
[6,null,null,null,{"$f":"IF(COUNTIF($B$17:$B395,B22)>1,\"サンプル名が重複しています\",\"\")","v":""},"",""]
[7,null,null,null,{"$f":"IF(COUNTIF($B$17:$B396,B23)>1,\"サンプル名が重複しています\",\"\")","v":""},"",""]
[8,null,null,null,{"$f":"IF(COUNTIF($B$17:$B397,B24)>1,\"サンプル名が重複しています\",\"\")","v":""},"",""]
[9,null,null,null,{"$f":"IF(COUNTIF($B$17:$B398,B25)>1,\"サンプル名が重複しています\",\"\")","v":""},"",""]
[10,null,null,null,{"$f":"IF(COUNTIF($B$17:$B399,B26)>1,\"サンプル名が重複しています\",\"\")","v":""},"",""]
[11,null,null,null,{"$f":"IF(COUNTIF($B$17:$B400,B27)>1,\"サンプル名が重複しています\",\"\")","v":""},"",""]
[12,null,null,null,{"$f":"IF(COUNTIF($B$17:$B401,B28)>1,\"サンプル名が重複しています\",\"\")","v":""},"",""]
[13,null,null,null,{"$f":"IF(COUNTIF($B$17:$B402,B29)>1,\"サンプル名が重複しています\",\"\")","v":""},"",""]
[14,null,null,null,{"$f":"IF(COUNTIF($B$17:$B403,B30)>1,\"サンプル名が重複しています\",\"\")","v":""},"",""]
[15,null,null,null,{"$f":"IF(COUNTIF($B$17:$B404,B31)>1,\"サンプル名が重複しています\",\"\")","v":""},"",""]
[16,null,null,null,{"$f":"IF(COUNTIF($B$17:$B405,B32)>1,\"サンプル名が重複しています\",\"\")","v":""},"",""]
[17,null,null,null,{"$f":"IF(COUNTIF($B$17:$B406,B33)>1,\"サンプル名が重複しています\",\"\")","v":""},"",""]
[18,null,null,null,{"$f":"IF(COUNTIF($B$17:$B407,B34)>1,\"サンプル名が重複しています\",\"\")","v":""},"",""]
[19,null,null,null,{"$f":"IF(COUNTIF($B$17:$B408,B35)>1,\"サンプル名が重複しています\",\"\")","v":""},"",""]
[20,null,null,null,{"$f":"IF(COUNTIF($B$17:$B409,B36)>1,\"サンプル名が重複しています\",\"\")","v":""},"",""]
[21,null,null,null,{"$f":"IF(COUNTIF($B$17:$B410,B37)>1,\"サンプル名が重複しています\",\"\")","v":""},"",""]
[22,null,null,null,{"$f":"IF(COUNTIF($B$17:$B411,B38)>1,\"サンプル名が重複しています\",\"\")","v":""},"",""]
[23,null,null,null,{"$f":"IF(COUNTIF($B$17:$B412,B39)>1,\"サンプル名が重複しています\",\"\")","v":""},"",""]
[24,null,null,null,{"$f":"IF(COUNTIF($B$17:$B413,B40)>1,\"サンプル名が重複しています\",\"\")","v":""},"",""]
[25,null,null,null,{"$f":"IF(COUNTIF($B$17:$B414,B41)>1,\"サンプル名が重複しています\",\"\")","v":""},"",""]
[26,null,null,null,{"$f":"IF(COUNTIF($B$17:$B415,B42)>1,\"サンプル名が重複しています\",\"\")","v":""},"",""]
[27,null,null,null,{"$f":"IF(COUNTIF($B$17:$B416,B43)>1,\"サンプル名が重複しています\",\"\")","v":""},"",""]
[28,null,null,null,{"$f":"IF(COUNTIF($B$17:$B417,B44)>1,\"サンプル名が重複しています\",\"\")","v":""},"",""]
[29,null,null,null,{"$f":"IF(COUNTIF($B$17:$B418,B45)>1,\"サンプル名が重複しています\",\"\")","v":""},"",""]
[30,null,null,null,{"$f":"IF(COUNTIF($B$17:$B419,B46)>1,\"サンプル名が重複しています\",\"\")","v":""},"",""]
[31,null,null,null,{"$f":"IF(COUNTIF($B$17:$B420,B47)>1,\"サンプル名が重複しています\",\"\")","v":""},"",""]
[32,null,null,null,{"$f":"IF(COUNTIF($B$17:$B421,B48)>1,\"サンプル名が重複しています\",\"\")","v":""},"",""]
[33,null,null,null,{"$f":"IF(COUNTIF($B$17:$B422,B49)>1,\"サンプル名が重複しています\",\"\")","v":""},"",""]
[34,null,null,null,{"$f":"IF(COUNTIF($B$17:$B423,B50)>1,\"サンプル名が重複しています\",\"\")","v":""},"",""]
[35,null,null,null,{"$f":"IF(COUNTIF($B$17:$B424,B51)>1,\"サンプル名が重複しています\",\"\")","v":""},"",""]
[36,null,null,null,{"$f":"IF(COUNTIF($B$17:$B425,B52)>1,\"サンプル名が重複しています\",\"\")","v":""},"",""]
[37,null,null,null,{"$f":"IF(COUNTIF($B$17:$B426,B53)>1,\"サンプル名が重複しています\",\"\")","v":""},"",""]
[38,null,null,null,{"$f":"IF(COUNTIF($B$17:$B427,B54)>1,\"サンプル名が重複しています\",\"\")","v":""},"",""]
[39,null,null,null,{"$f":"IF(COUNTIF($B$17:$B428,B55)>1,\"サンプル名が重複しています\",\"\")","v":""},"",""]
[40,null,null,null,{"$f":"IF(COUNTIF($B$17:$B429,B56)>1,\"サンプル名が重複しています\",\"\")","v":""},"",""]
[41,null,null,null,{"$f":"IF(COUNTIF($B$17:$B430,B57)>1,\"サンプル名が重複しています\",\"\")","v":""},"",""]
[42,null,null,null,{"$f":"IF(COUNTIF($B$17:$B431,B58)>1,\"サンプル名が重複しています\",\"\")","v":""},"",""]
[43,null,null,null,{"$f":"IF(COUNTIF($B$17:$B432,B59)>1,\"サンプル名が重複しています\",\"\")","v":""},"",""]
[44,null,null,null,{"$f":"IF(COUNTIF($B$17:$B433,B60)>1,\"サンプル名が重複しています\",\"\")","v":""},"",""]
[45,null,null,null,{"$f":"IF(COUNTIF($B$17:$B434,B61)>1,\"サンプル名が重複しています\",\"\")","v":""},"",""]
[46,null,null,null,{"$f":"IF(COUNTIF($B$17:$B435,B62)>1,\"サンプル名が重複しています\",\"\")","v":""},"",""]
[47,null,null,null,{"$f":"IF(COUNTIF($B$17:$B436,B63)>1,\"サンプル名が重複しています\",\"\")","v":""},"",""]
[48,null,null,null,{"$f":"IF(COUNTIF($B$17:$B437,B64)>1,\"サンプル名が重複しています\",\"\")","v":""},"",""]
[null,null,null,null,{"$f":"IF(COUNTIF($B$17:$B438,B65)>1,\"サンプル名が重複しています\",\"\")","v":""},"",""]
[null,null,null,null,{"$f":"IF(COUNTIF($B$17:$B439,B66)>1,\"サンプル名が重複しています\",\"\")","v":""},"",""]
[null,null,null,null,{"$f":"IF(COUNTIF($B$17:$B440,B67)>1,\"サンプル名が重複しています\",\"\")","v":""},"",""]
[null,null,null,null,{"$f":"IF(COUNTIF($B$17:$B441,B68)>1,\"サンプル名が重複しています\",\"\")","v":""},"",""]
[null,null,null,null,{"$f":"IF(COUNTIF($B$17:$B442,B69)>1,\"サンプル名が重複しています\",\"\")","v":""},"",""]
[null,null,null,null,{"$f":"IF(COUNTIF($B$17:$B443,B70)>1,\"サンプル名が重複しています\",\"\")","v":""},"",""]
[null,null,null,null,{"$f":"IF(COUNTIF($B$17:$B444,B71)>1,\"サンプル名が重複しています\",\"\")","v":""},"",""]
[null,null,null,null,{"$f":"IF(COUNTIF($B$17:$B445,B72)>1,\"サンプル名が重複しています\",\"\")","v":""},"",""]
[null,null,null,null,{"$f":"IF(COUNTIF($B$17:$B446,B73)>1,\"サンプル名が重複しています\",\"\")","v":""},"",""]
[null,null,null,null,{"$f":"IF(COUNTIF($B$17:$B447,B74)>1,\"サンプル名が重複しています\",\"\")","v":""},"",""]
[null,null,null,null,{"$f":"IF(COUNTIF($B$17:$B448,B75)>1,\"サンプル名が重複しています\",\"\")","v":""},"",""]
[null,null,null,null,{"$f":"IF(COUNTIF($B$17:$B449,B76)>1,\"サンプル名が重複しています\",\"\")","v":""},"",""]
[null,null,null,null,{"$f":"IF(COUNTIF($B$17:$B450,B77)>1,\"サンプル名が重複しています\",\"\")","v":""},"",""]
[null,null,null,null,{"$f":"IF(COUNTIF($B$17:$B451,B78)>1,\"サンプル名が重複しています\",\"\")","v":""},"",""]
[null,null,null,null,{"$f":"IF(COUNTIF($B$17:$B452,B79)>1,\"サンプル名が重複しています\",\"\")","v":""},"",""]
[null,null,null,null,{"$f":"IF(COUNTIF($B$17:$B453,B80)>1,\"サンプル名が重複しています\",\"\")","v":""},"",""]
[null,null,null,null,{"$f":"IF(COUNTIF($B$17:$B454,B81)>1,\"サンプル名が重複しています\",\"\")","v":""},"",""]
[null,null,null,null,{"$f":"IF(COUNTIF($B$17:$B455,B82)>1,\"サンプル名が重複しています\",\"\")","v":""},{"$f":"IF(D82=\"\",\"\",IF(D82>1,C82&D82))","v":""},{"$f":"IF(F82=\"\",\"\",IF(COUNTIF($F$17:$F$390,F82)>1,\"indexが重複しています\",\"\"))","v":""}]
[null,null,null,null,{"$f":"IF(COUNTIF($B$17:$B456,B83)>1,\"サンプル名が重複しています\",\"\")","v":""},"",""]
[null,null,null,null,{"$f":"IF(COUNTIF($B$17:$B457,B84)>1,\"サンプル名が重複しています\",\"\")","v":""},"",""]
[null,null,null,null,{"$f":"IF(COUNTIF($B$17:$B458,B85)>1,\"サンプル名が重複しています\",\"\")","v":""},"",""]
[null,null,null,null,{"$f":"IF(COUNTIF($B$17:$B459,B86)>1,\"サンプル名が重複しています\",\"\")","v":""},"",""]
[null,null,null,null,{"$f":"IF(COUNTIF($B$17:$B460,B87)>1,\"サンプル名が重複しています\",\"\")","v":""},"",""]
[null,null,null,null,{"$f":"IF(COUNTIF($B$17:$B461,B88)>1,\"サンプル名が重複しています\",\"\")","v":""},"",""]
[null,null,null,null,{"$f":"IF(COUNTIF($B$17:$B462,B89)>1,\"サンプル名が重複しています\",\"\")","v":""},"",""]
[null,null,null,null,{"$f":"IF(COUNTIF($B$17:$B463,B90)>1,\"サンプル名が重複しています\",\"\")","v":""},"",""]
[null,null,null,null,{"$f":"IF(COUNTIF($B$17:$B464,B91)>1,\"サンプル名が重複しています\",\"\")","v":""},"",""]
[null,null,null,null,{"$f":"IF(COUNTIF($B$17:$B465,B92)>1,\"サンプル名が重複しています\",\"\")","v":""},"",""]
[null,null,null,null,{"$f":"IF(COUNTIF($B$17:$B466,B93)>1,\"サンプル名が重複しています\",\"\")","v":""},"",""]
[null,null,null,null,{"$f":"IF(COUNTIF($B$17:$B467,B94)>1,\"サンプル名が重複しています\",\"\")","v":""},"",""]
[null,null,null,null,{"$f":"IF(COUNTIF($B$17:$B468,B95)>1,\"サンプル名が重複しています\",\"\")","v":""},"",""]
[null,null,null,null,{"$f":"IF(COUNTIF($B$17:$B469,B96)>1,\"サンプル名が重複しています\",\"\")","v":""},"",""]
[null,null,null,null,{"$f":"IF(COUNTIF($B$17:$B470,B97)>1,\"サンプル名が重複しています\",\"\")","v":""},"",""]
[null,null,null,null,{"$f":"IF(COUNTIF($B$17:$B471,B98)>1,\"サンプル名が重複しています\",\"\")","v":""},"",""]
[null,null,null,null,{"$f":"IF(COUNTIF($B$17:$B472,B99)>1,\"サンプル名が重複しています\",\"\")","v":""},"",""]
[null,null,null,null,{"$f":"IF(COUNTIF($B$17:$B473,B100)>1,\"サンプル名が重複しています\",\"\")","v":""},"",""]
[null,null,null,null,{"$f":"IF(COUNTIF($B$17:$B474,B101)>1,\"サンプル名が重複しています\",\"\")","v":""},"",""]
[null,null,null,null,{"$f":"IF(COUNTIF($B$17:$B475,B102)>1,\"サンプル名が重複しています\",\"\")","v":""},"",""]
[null,null,null,null,{"$f":"IF(COUNTIF($B$17:$B476,B103)>1,\"サンプル名が重複しています\",\"\")","v":""},"",""]
[null,null,null,null,{"$f":"IF(COUNTIF($B$17:$B477,B104)>1,\"サンプル名が重複しています\",\"\")","v":""},"",""]
[null,null,null,null,{"$f":"IF(COUNTIF($B$17:$B478,B105)>1,\"サンプル名が重複しています\",\"\")","v":""},"",""]
[null,null,null,null,{"$f":"IF(COUNTIF($B$17:$B479,B106)>1,\"サンプル名が重複しています\",\"\")","v":""},"",""]
[null,null,null,null,{"$f":"IF(COUNTIF($B$17:$B480,B107)>1,\"サンプル名が重複しています\",\"\")","v":""},"",""]
[null,null,null,null,{"$f":"IF(COUNTIF($B$17:$B481,B108)>1,\"サンプル名が重複しています\",\"\")","v":""},"",""]
[null,null,null,null,{"$f":"IF(COUNTIF($B$17:$B482,B109)>1,\"サンプル名が重複しています\",\"\")","v":""},"",""]
[null,null,null,null,{"$f":"IF(COUNTIF($B$17:$B483,B110)>1,\"サンプル名が重複しています\",\"\")","v":""},"",""]
[null,null,null,null,{"$f":"IF(COUNTIF($B$17:$B484,B111)>1,\"サンプル名が重複しています\",\"\")","v":""},"",""]
[null,null,null,null,{"$f":"IF(COUNTIF($B$17:$B485,B112)>1,\"サンプル名が重複しています\",\"\")","v":""},"",""]
[null,null,null,null,{"$f":"IF(COUNTIF($B$17:$B486,B113)>1,\"サンプル名が重複しています\",\"\")","v":""},"",""]
[null,null,null,null,{"$f":"IF(COUNTIF($B$17:$B487,B114)>1,\"サンプル名が重複しています\",\"\")","v":""},"",""]
[null,null,null,null,{"$f":"IF(COUNTIF($B$17:$B488,B115)>1,\"サンプル名が重複しています\",\"\")","v":""},"",""]
[null,null,null,null,{"$f":"IF(COUNTIF($B$17:$B489,B116)>1,\"サンプル名が重複しています\",\"\")","v":""},"",""]
[null,null,null,null,{"$f":"IF(COUNTIF($B$17:$B490,B117)>1,\"サンプル名が重複しています\",\"\")","v":""},"",""]
[null,null,null,null,{"$f":"IF(COUNTIF($B$17:$B491,B118)>1,\"サンプル名が重複しています\",\"\")","v":""},"",""]
[null,null,null,null,{"$f":"IF(COUNTIF($B$17:$B492,B119)>1,\"サンプル名が重複しています\",\"\")","v":""},"",""]
[null,null,null,null,{"$f":"IF(COUNTIF($B$17:$B493,B120)>1,\"サンプル名が重複しています\",\"\")","v":""},"",""]
[null,null,null,null,{"$f":"IF(COUNTIF($B$17:$B494,B121)>1,\"サンプル名が重複しています\",\"\")","v":""},"",""]
[null,null,null,null,{"$f":"IF(COUNTIF($B$17:$B495,B122)>1,\"サンプル名が重複しています\",\"\")","v":""},"",""]
[null,null,null,null,{"$f":"IF(COUNTIF($B$17:$B496,B123)>1,\"サンプル名が重複しています\",\"\")","v":""},"",""]
[null,null,null,null,{"$f":"IF(COUNTIF($B$17:$B497,B124)>1,\"サンプル名が重複しています\",\"\")","v":""},"",""]
[null,null,null,null,{"$f":"IF(COUNTIF($B$17:$B498,B125)>1,\"サンプル名が重複しています\",\"\")","v":""},"",""]
[null,null,null,null,{"$f":"IF(COUNTIF($B$17:$B499,B126)>1,\"サンプル名が重複しています\",\"\")","v":""},"",""]
[null,null,null,null,{"$f":"IF(COUNTIF($B$17:$B500,B127)>1,\"サンプル名が重複しています\",\"\")","v":""},"",""]
[null,null,null,null,{"$f":"IF(COUNTIF($B$17:$B501,B128)>1,\"サンプル名が重複しています\",\"\")","v":""},"",""]
[null,null,null,null,{"$f":"IF(COUNTIF($B$17:$B502,B129)>1,\"サンプル名が重複しています\",\"\")","v":""},"",""]
[null,null,null,null,{"$f":"IF(COUNTIF($B$17:$B503,B130)>1,\"サンプル名が重複しています\",\"\")","v":""},"",""]
[null,null,null,null,{"$f":"IF(COUNTIF($B$17:$B504,B131)>1,\"サンプル名が重複しています\",\"\")","v":""},"",""]
[null,null,null,null,{"$f":"IF(COUNTIF($B$17:$B505,B132)>1,\"サンプル名が重複しています\",\"\")","v":""},"",""]
[null,null,null,null,{"$f":"IF(COUNTIF($B$17:$B506,B133)>1,\"サンプル名が重複しています\",\"\")","v":""},"",""]
[null,null,null,null,{"$f":"IF(COUNTIF($B$17:$B507,B134)>1,\"サンプル名が重複しています\",\"\")","v":""},"",""]
[null,null,null,null,{"$f":"IF(COUNTIF($B$17:$B508,B135)>1,\"サンプル名が重複しています\",\"\")","v":""},"",""]
[null,null,null,null,{"$f":"IF(COUNTIF($B$17:$B509,B136)>1,\"サンプル名が重複しています\",\"\")","v":""},"",""]
[null,null,null,null,{"$f":"IF(COUNTIF($B$17:$B510,B137)>1,\"サンプル名が重複しています\",\"\")","v":""},"",""]
[null,null,null,null,{"$f":"IF(COUNTIF($B$17:$B511,B138)>1,\"サンプル名が重複しています\",\"\")","v":""},"",""]
[null,null,null,null,{"$f":"IF(COUNTIF($B$17:$B512,B139)>1,\"サンプル名が重複しています\",\"\")","v":""},"",""]
[null,null,null,null,{"$f":"IF(COUNTIF($B$17:$B513,B140)>1,\"サンプル名が重複しています\",\"\")","v":""},"",""]
[null,null,null,null,{"$f":"IF(COUNTIF($B$17:$B514,B141)>1,\"サンプル名が重複しています\",\"\")","v":""},"",""]
[null,null,null,null,{"$f":"IF(COUNTIF($B$17:$B515,B142)>1,\"サンプル名が重複しています\",\"\")","v":""},"",""]
[null,null,null,null,{"$f":"IF(COUNTIF($B$17:$B516,B143)>1,\"サンプル名が重複しています\",\"\")","v":""},"",""]
[null,null,null,null,{"$f":"IF(COUNTIF($B$17:$B517,B144)>1,\"サンプル名が重複しています\",\"\")","v":""},"",""]
[null,null,null,null,{"$f":"IF(COUNTIF($B$17:$B518,B145)>1,\"サンプル名が重複しています\",\"\")","v":""},"",""]
[null,null,null,null,{"$f":"IF(COUNTIF($B$17:$B519,B146)>1,\"サンプル名が重複しています\",\"\")","v":""},{"$f":"IF(D146=\"\",\"\",IF(D146>1,C146&D146))","v":""},{"$f":"IF(F146=\"\",\"\",IF(COUNTIF($F$17:$F$390,F146)>1,\"indexが重複しています\",\"\"))","v":""}]
[null,null,null,null,{"$f":"IF(COUNTIF($B$17:$B520,B147)>1,\"サンプル名が重複しています\",\"\")","v":""},"",""]
[null,null,null,null,{"$f":"IF(COUNTIF($B$17:$B521,B148)>1,\"サンプル名が重複しています\",\"\")","v":""},"",""]
[null,null,null,null,{"$f":"IF(COUNTIF($B$17:$B522,B149)>1,\"サンプル名が重複しています\",\"\")","v":""},"",""]
[null,null,null,null,{"$f":"IF(COUNTIF($B$17:$B523,B150)>1,\"サンプル名が重複しています\",\"\")","v":""},"",""]
[null,null,null,null,{"$f":"IF(COUNTIF($B$17:$B524,B151)>1,\"サンプル名が重複しています\",\"\")","v":""},"",""]
[null,null,null,null,{"$f":"IF(COUNTIF($B$17:$B525,B152)>1,\"サンプル名が重複しています\",\"\")","v":""},"",""]
[null,null,null,null,{"$f":"IF(COUNTIF($B$17:$B526,B153)>1,\"サンプル名が重複しています\",\"\")","v":""},"",""]
[null,null,null,null,{"$f":"IF(COUNTIF($B$17:$B527,B154)>1,\"サンプル名が重複しています\",\"\")","v":""},"",""]
[null,null,null,null,{"$f":"IF(COUNTIF($B$17:$B528,B155)>1,\"サンプル名が重複しています\",\"\")","v":""},"",""]
[null,null,null,null,{"$f":"IF(COUNTIF($B$17:$B529,B156)>1,\"サンプル名が重複しています\",\"\")","v":""},"",""]
[null,null,null,null,{"$f":"IF(COUNTIF($B$17:$B530,B157)>1,\"サンプル名が重複しています\",\"\")","v":""},"",""]
[null,null,null,null,{"$f":"IF(COUNTIF($B$17:$B531,B158)>1,\"サンプル名が重複しています\",\"\")","v":""},"",""]
[null,null,null,null,{"$f":"IF(COUNTIF($B$17:$B532,B159)>1,\"サンプル名が重複しています\",\"\")","v":""},"",""]
[null,null,null,null,{"$f":"IF(COUNTIF($B$17:$B533,B160)>1,\"サンプル名が重複しています\",\"\")","v":""},"",""]
[null,null,null,null,{"$f":"IF(COUNTIF($B$17:$B534,B161)>1,\"サンプル名が重複しています\",\"\")","v":""},"",""]
[null,null,null,null,{"$f":"IF(COUNTIF($B$17:$B535,B162)>1,\"サンプル名が重複しています\",\"\")","v":""},"",""]
[null,null,null,null,{"$f":"IF(COUNTIF($B$17:$B536,B163)>1,\"サンプル名が重複しています\",\"\")","v":""},"",""]
[null,null,null,null,{"$f":"IF(COUNTIF($B$17:$B537,B164)>1,\"サンプル名が重複しています\",\"\")","v":""},"",""]
[null,null,null,null,{"$f":"IF(COUNTIF($B$17:$B538,B165)>1,\"サンプル名が重複しています\",\"\")","v":""},"",""]
[null,null,null,null,{"$f":"IF(COUNTIF($B$17:$B539,B166)>1,\"サンプル名が重複しています\",\"\")","v":""},"",""]
[null,null,null,null,{"$f":"IF(COUNTIF($B$17:$B540,B167)>1,\"サンプル名が重複しています\",\"\")","v":""},"",""]
[null,null,null,null,{"$f":"IF(COUNTIF($B$17:$B541,B168)>1,\"サンプル名が重複しています\",\"\")","v":""},"",""]
[null,null,null,null,{"$f":"IF(COUNTIF($B$17:$B542,B169)>1,\"サンプル名が重複しています\",\"\")","v":""},"",""]
[null,null,null,null,{"$f":"IF(COUNTIF($B$17:$B543,B170)>1,\"サンプル名が重複しています\",\"\")","v":""},"",""]
[null,null,null,null,{"$f":"IF(COUNTIF($B$17:$B544,B171)>1,\"サンプル名が重複しています\",\"\")","v":""},"",""]
[null,null,null,null,{"$f":"IF(COUNTIF($B$17:$B545,B172)>1,\"サンプル名が重複しています\",\"\")","v":""},"",""]
[null,null,null,null,{"$f":"IF(COUNTIF($B$17:$B546,B173)>1,\"サンプル名が重複しています\",\"\")","v":""},"",""]
[null,null,null,null,{"$f":"IF(COUNTIF($B$17:$B547,B174)>1,\"サンプル名が重複しています\",\"\")","v":""},"",""]
[null,null,null,null,{"$f":"IF(COUNTIF($B$17:$B548,B175)>1,\"サンプル名が重複しています\",\"\")","v":""},"",""]
[null,null,null,null,{"$f":"IF(COUNTIF($B$17:$B549,B176)>1,\"サンプル名が重複しています\",\"\")","v":""},"",""]
[null,null,null,null,{"$f":"IF(COUNTIF($B$17:$B550,B177)>1,\"サンプル名が重複しています\",\"\")","v":""},"",""]
[null,null,null,null,{"$f":"IF(COUNTIF($B$17:$B551,B178)>1,\"サンプル名が重複しています\",\"\")","v":""},"",""]
[null,null,null,null,{"$f":"IF(COUNTIF($B$17:$B552,B179)>1,\"サンプル名が重複しています\",\"\")","v":""},"",""]
[null,null,null,null,{"$f":"IF(COUNTIF($B$17:$B553,B180)>1,\"サンプル名が重複しています\",\"\")","v":""},"",""]
[null,null,null,null,{"$f":"IF(COUNTIF($B$17:$B554,B181)>1,\"サンプル名が重複しています\",\"\")","v":""},"",""]
[null,null,null,null,{"$f":"IF(COUNTIF($B$17:$B555,B182)>1,\"サンプル名が重複しています\",\"\")","v":""},"",""]
[null,null,null,null,{"$f":"IF(COUNTIF($B$17:$B556,B183)>1,\"サンプル名が重複しています\",\"\")","v":""},"",""]
[null,null,null,null,{"$f":"IF(COUNTIF($B$17:$B557,B184)>1,\"サンプル名が重複しています\",\"\")","v":""},"",""]
[null,null,null,null,{"$f":"IF(COUNTIF($B$17:$B558,B185)>1,\"サンプル名が重複しています\",\"\")","v":""},"",""]
[null,null,null,null,{"$f":"IF(COUNTIF($B$17:$B559,B186)>1,\"サンプル名が重複しています\",\"\")","v":""},"",""]
[null,null,null,null,{"$f":"IF(COUNTIF($B$17:$B560,B187)>1,\"サンプル名が重複しています\",\"\")","v":""},"",""]
[null,null,null,null,{"$f":"IF(COUNTIF($B$17:$B561,B188)>1,\"サンプル名が重複しています\",\"\")","v":""},"",""]
[null,null,null,null,{"$f":"IF(COUNTIF($B$17:$B562,B189)>1,\"サンプル名が重複しています\",\"\")","v":""},"",""]
[null,null,null,null,{"$f":"IF(COUNTIF($B$17:$B563,B190)>1,\"サンプル名が重複しています\",\"\")","v":""},"",""]
[null,null,null,null,{"$f":"IF(COUNTIF($B$17:$B564,B191)>1,\"サンプル名が重複しています\",\"\")","v":""},"",""]
[null,null,null,null,{"$f":"IF(COUNTIF($B$17:$B565,B192)>1,\"サンプル名が重複しています\",\"\")","v":""},"",""]
[null,null,null,null,{"$f":"IF(COUNTIF($B$17:$B566,B193)>1,\"サンプル名が重複しています\",\"\")","v":""},"",""]
[null,null,null,null,{"$f":"IF(COUNTIF($B$17:$B567,B194)>1,\"サンプル名が重複しています\",\"\")","v":""},"",""]
[null,null,null,null,{"$f":"IF(COUNTIF($B$17:$B568,B195)>1,\"サンプル名が重複しています\",\"\")","v":""},"",""]
[null,null,null,null,{"$f":"IF(COUNTIF($B$17:$B569,B196)>1,\"サンプル名が重複しています\",\"\")","v":""},"",""]
[null,null,null,null,{"$f":"IF(COUNTIF($B$17:$B570,B197)>1,\"サンプル名が重複しています\",\"\")","v":""},"",""]
[null,null,null,null,{"$f":"IF(COUNTIF($B$17:$B571,B198)>1,\"サンプル名が重複しています\",\"\")","v":""},"",""]
[null,null,null,null,{"$f":"IF(COUNTIF($B$17:$B572,B199)>1,\"サンプル名が重複しています\",\"\")","v":""},"",""]
[null,null,null,null,{"$f":"IF(COUNTIF($B$17:$B573,B200)>1,\"サンプル名が重複しています\",\"\")","v":""},"",""]
[null,null,null,null,{"$f":"IF(COUNTIF($B$17:$B574,B201)>1,\"サンプル名が重複しています\",\"\")","v":""},"",""]
[null,null,null,null,{"$f":"IF(COUNTIF($B$17:$B575,B202)>1,\"サンプル名が重複しています\",\"\")","v":""},"",""]
[null,null,null,null,{"$f":"IF(COUNTIF($B$17:$B576,B203)>1,\"サンプル名が重複しています\",\"\")","v":""},"",""]
[null,null,null,null,{"$f":"IF(COUNTIF($B$17:$B577,B204)>1,\"サンプル名が重複しています\",\"\")","v":""},"",""]
[null,null,null,null,{"$f":"IF(COUNTIF($B$17:$B578,B205)>1,\"サンプル名が重複しています\",\"\")","v":""},"",""]
[null,null,null,null,{"$f":"IF(COUNTIF($B$17:$B579,B206)>1,\"サンプル名が重複しています\",\"\")","v":""},"",""]
[null,null,null,null,{"$f":"IF(COUNTIF($B$17:$B580,B207)>1,\"サンプル名が重複しています\",\"\")","v":""},"",""]
[null,null,null,null,{"$f":"IF(COUNTIF($B$17:$B581,B208)>1,\"サンプル名が重複しています\",\"\")","v":""},"",""]
[null,null,null,null,{"$f":"IF(COUNTIF($B$17:$B582,B209)>1,\"サンプル名が重複しています\",\"\")","v":""},"",""]
[null,null,null,null,{"$f":"IF(COUNTIF($B$17:$B583,B210)>1,\"サンプル名が重複しています\",\"\")","v":""},{"$f":"IF(D210=\"\",\"\",IF(D210>1,C210&D210))","v":""},{"$f":"IF(F210=\"\",\"\",IF(COUNTIF($F$17:$F$390,F210)>1,\"indexが重複しています\",\"\"))","v":""}]
[null,null,null,null,{"$f":"IF(COUNTIF($B$17:$B584,B211)>1,\"サンプル名が重複しています\",\"\")","v":""},"",""]
[null,null,null,null,{"$f":"IF(COUNTIF($B$17:$B585,B212)>1,\"サンプル名が重複しています\",\"\")","v":""},"",""]
[null,null,null,null,{"$f":"IF(COUNTIF($B$17:$B586,B213)>1,\"サンプル名が重複しています\",\"\")","v":""},"",""]
[null,null,null,null,{"$f":"IF(COUNTIF($B$17:$B587,B214)>1,\"サンプル名が重複しています\",\"\")","v":""},"",""]
[null,null,null,null,{"$f":"IF(COUNTIF($B$17:$B588,B215)>1,\"サンプル名が重複しています\",\"\")","v":""},"",""]
[null,null,null,null,{"$f":"IF(COUNTIF($B$17:$B589,B216)>1,\"サンプル名が重複しています\",\"\")","v":""},"",""]
[null,null,null,null,{"$f":"IF(COUNTIF($B$17:$B590,B217)>1,\"サンプル名が重複しています\",\"\")","v":""},"",""]
[null,null,null,null,{"$f":"IF(COUNTIF($B$17:$B591,B218)>1,\"サンプル名が重複しています\",\"\")","v":""},"",""]
[null,null,null,null,{"$f":"IF(COUNTIF($B$17:$B592,B219)>1,\"サンプル名が重複しています\",\"\")","v":""},"",""]
[null,null,null,null,{"$f":"IF(COUNTIF($B$17:$B593,B220)>1,\"サンプル名が重複しています\",\"\")","v":""},"",""]
[null,null,null,null,{"$f":"IF(COUNTIF($B$17:$B594,B221)>1,\"サンプル名が重複しています\",\"\")","v":""},"",""]
[null,null,null,null,{"$f":"IF(COUNTIF($B$17:$B595,B222)>1,\"サンプル名が重複しています\",\"\")","v":""},"",""]
[null,null,null,null,{"$f":"IF(COUNTIF($B$17:$B596,B223)>1,\"サンプル名が重複しています\",\"\")","v":""},"",""]
[null,null,null,null,{"$f":"IF(COUNTIF($B$17:$B597,B224)>1,\"サンプル名が重複しています\",\"\")","v":""},"",""]
[null,null,null,null,{"$f":"IF(COUNTIF($B$17:$B598,B225)>1,\"サンプル名が重複しています\",\"\")","v":""},"",""]
[null,null,null,null,{"$f":"IF(COUNTIF($B$17:$B599,B226)>1,\"サンプル名が重複しています\",\"\")","v":""},"",""]
[null,null,null,null,{"$f":"IF(COUNTIF($B$17:$B600,B227)>1,\"サンプル名が重複しています\",\"\")","v":""},"",""]
[null,null,null,null,{"$f":"IF(COUNTIF($B$17:$B601,B228)>1,\"サンプル名が重複しています\",\"\")","v":""},"",""]
[null,null,null,null,{"$f":"IF(COUNTIF($B$17:$B602,B229)>1,\"サンプル名が重複しています\",\"\")","v":""},"",""]
[null,null,null,null,{"$f":"IF(COUNTIF($B$17:$B603,B230)>1,\"サンプル名が重複しています\",\"\")","v":""},"",""]
[null,null,null,null,{"$f":"IF(COUNTIF($B$17:$B604,B231)>1,\"サンプル名が重複しています\",\"\")","v":""},"",""]
[null,null,null,null,{"$f":"IF(COUNTIF($B$17:$B605,B232)>1,\"サンプル名が重複しています\",\"\")","v":""},"",""]
[null,null,null,null,{"$f":"IF(COUNTIF($B$17:$B606,B233)>1,\"サンプル名が重複しています\",\"\")","v":""},"",""]
[null,null,null,null,{"$f":"IF(COUNTIF($B$17:$B607,B234)>1,\"サンプル名が重複しています\",\"\")","v":""},"",""]
[null,null,null,null,{"$f":"IF(COUNTIF($B$17:$B608,B235)>1,\"サンプル名が重複しています\",\"\")","v":""},"",""]
[null,null,null,null,{"$f":"IF(COUNTIF($B$17:$B609,B236)>1,\"サンプル名が重複しています\",\"\")","v":""},"",""]
[null,null,null,null,{"$f":"IF(COUNTIF($B$17:$B610,B237)>1,\"サンプル名が重複しています\",\"\")","v":""},"",""]
[null,null,null,null,{"$f":"IF(COUNTIF($B$17:$B611,B238)>1,\"サンプル名が重複しています\",\"\")","v":""},"",""]
[null,null,null,null,{"$f":"IF(COUNTIF($B$17:$B612,B239)>1,\"サンプル名が重複しています\",\"\")","v":""},"",""]
[null,null,null,null,{"$f":"IF(COUNTIF($B$17:$B613,B240)>1,\"サンプル名が重複しています\",\"\")","v":""},"",""]
[null,null,null,null,{"$f":"IF(COUNTIF($B$17:$B614,B241)>1,\"サンプル名が重複しています\",\"\")","v":""},"",""]
[null,null,null,null,{"$f":"IF(COUNTIF($B$17:$B615,B242)>1,\"サンプル名が重複しています\",\"\")","v":""},"",""]
[null,null,null,null,{"$f":"IF(COUNTIF($B$17:$B616,B243)>1,\"サンプル名が重複しています\",\"\")","v":""},"",""]
[null,null,null,null,{"$f":"IF(COUNTIF($B$17:$B617,B244)>1,\"サンプル名が重複しています\",\"\")","v":""},"",""]
[null,null,null,null,{"$f":"IF(COUNTIF($B$17:$B618,B245)>1,\"サンプル名が重複しています\",\"\")","v":""},"",""]
[null,null,null,null,{"$f":"IF(COUNTIF($B$17:$B619,B246)>1,\"サンプル名が重複しています\",\"\")","v":""},"",""]
[null,null,null,null,{"$f":"IF(COUNTIF($B$17:$B620,B247)>1,\"サンプル名が重複しています\",\"\")","v":""},"",""]
[null,null,null,null,{"$f":"IF(COUNTIF($B$17:$B621,B248)>1,\"サンプル名が重複しています\",\"\")","v":""},"",""]
[null,null,null,null,{"$f":"IF(COUNTIF($B$17:$B622,B249)>1,\"サンプル名が重複しています\",\"\")","v":""},"",""]
[null,null,null,null,{"$f":"IF(COUNTIF($B$17:$B623,B250)>1,\"サンプル名が重複しています\",\"\")","v":""},"",""]
[null,null,null,null,{"$f":"IF(COUNTIF($B$17:$B624,B251)>1,\"サンプル名が重複しています\",\"\")","v":""},"",""]
[null,null,null,null,{"$f":"IF(COUNTIF($B$17:$B625,B252)>1,\"サンプル名が重複しています\",\"\")","v":""},"",""]
[null,null,null,null,{"$f":"IF(COUNTIF($B$17:$B626,B253)>1,\"サンプル名が重複しています\",\"\")","v":""},"",""]
[null,null,null,null,{"$f":"IF(COUNTIF($B$17:$B627,B254)>1,\"サンプル名が重複しています\",\"\")","v":""},"",""]
[null,null,null,null,{"$f":"IF(COUNTIF($B$17:$B628,B255)>1,\"サンプル名が重複しています\",\"\")","v":""},"",""]
[null,null,null,null,{"$f":"IF(COUNTIF($B$17:$B629,B256)>1,\"サンプル名が重複しています\",\"\")","v":""},"",""]
[null,null,null,null,{"$f":"IF(COUNTIF($B$17:$B630,B257)>1,\"サンプル名が重複しています\",\"\")","v":""},"",""]
[null,null,null,null,{"$f":"IF(COUNTIF($B$17:$B631,B258)>1,\"サンプル名が重複しています\",\"\")","v":""},"",""]
[null,null,null,null,{"$f":"IF(COUNTIF($B$17:$B632,B259)>1,\"サンプル名が重複しています\",\"\")","v":""},"",""]
[null,null,null,null,{"$f":"IF(COUNTIF($B$17:$B633,B260)>1,\"サンプル名が重複しています\",\"\")","v":""},"",""]
[null,null,null,null,{"$f":"IF(COUNTIF($B$17:$B634,B261)>1,\"サンプル名が重複しています\",\"\")","v":""},"",""]
[null,null,null,null,{"$f":"IF(COUNTIF($B$17:$B635,B262)>1,\"サンプル名が重複しています\",\"\")","v":""},"",""]
[null,null,null,null,{"$f":"IF(COUNTIF($B$17:$B636,B263)>1,\"サンプル名が重複しています\",\"\")","v":""},"",""]
[null,null,null,null,{"$f":"IF(COUNTIF($B$17:$B637,B264)>1,\"サンプル名が重複しています\",\"\")","v":""},"",""]
[null,null,null,null,{"$f":"IF(COUNTIF($B$17:$B638,B265)>1,\"サンプル名が重複しています\",\"\")","v":""},"",""]
[null,null,null,null,{"$f":"IF(COUNTIF($B$17:$B639,B266)>1,\"サンプル名が重複しています\",\"\")","v":""},"",""]
[null,null,null,null,{"$f":"IF(COUNTIF($B$17:$B640,B267)>1,\"サンプル名が重複しています\",\"\")","v":""},"",""]
[null,null,null,null,{"$f":"IF(COUNTIF($B$17:$B641,B268)>1,\"サンプル名が重複しています\",\"\")","v":""},"",""]
[null,null,null,null,{"$f":"IF(COUNTIF($B$17:$B642,B269)>1,\"サンプル名が重複しています\",\"\")","v":""},"",""]
[null,null,null,null,{"$f":"IF(COUNTIF($B$17:$B643,B270)>1,\"サンプル名が重複しています\",\"\")","v":""},"",""]
[null,null,null,null,{"$f":"IF(COUNTIF($B$17:$B644,B271)>1,\"サンプル名が重複しています\",\"\")","v":""},"",""]
[null,null,null,null,{"$f":"IF(COUNTIF($B$17:$B645,B272)>1,\"サンプル名が重複しています\",\"\")","v":""},"",""]
[null,null,null,null,{"$f":"IF(COUNTIF($B$17:$B646,B273)>1,\"サンプル名が重複しています\",\"\")","v":""},"",""]
[null,null,null,null,{"$f":"IF(COUNTIF($B$17:$B647,B274)>1,\"サンプル名が重複しています\",\"\")","v":""},{"$f":"IF(D274=\"\",\"\",IF(D274>1,C274&D274))","v":""},{"$f":"IF(F274=\"\",\"\",IF(COUNTIF($F$17:$F$390,F274)>1,\"indexが重複しています\",\"\"))","v":""}]
[null,null,null,null,{"$f":"IF(COUNTIF($B$17:$B648,B275)>1,\"サンプル名が重複しています\",\"\")","v":""},"",""]
[null,null,null,null,{"$f":"IF(COUNTIF($B$17:$B649,B276)>1,\"サンプル名が重複しています\",\"\")","v":""},"",""]
[null,null,null,null,{"$f":"IF(COUNTIF($B$17:$B650,B277)>1,\"サンプル名が重複しています\",\"\")","v":""},"",""]
[null,null,null,null,{"$f":"IF(COUNTIF($B$17:$B651,B278)>1,\"サンプル名が重複しています\",\"\")","v":""},"",""]
[null,null,null,null,{"$f":"IF(COUNTIF($B$17:$B652,B279)>1,\"サンプル名が重複しています\",\"\")","v":""},"",""]
[null,null,null,null,{"$f":"IF(COUNTIF($B$17:$B653,B280)>1,\"サンプル名が重複しています\",\"\")","v":""},"",""]
[null,null,null,null,{"$f":"IF(COUNTIF($B$17:$B654,B281)>1,\"サンプル名が重複しています\",\"\")","v":""},"",""]
[null,null,null,null,{"$f":"IF(COUNTIF($B$17:$B655,B282)>1,\"サンプル名が重複しています\",\"\")","v":""},"",""]
[null,null,null,null,{"$f":"IF(COUNTIF($B$17:$B656,B283)>1,\"サンプル名が重複しています\",\"\")","v":""},"",""]
[null,null,null,null,{"$f":"IF(COUNTIF($B$17:$B657,B284)>1,\"サンプル名が重複しています\",\"\")","v":""},"",""]
[null,null,null,null,{"$f":"IF(COUNTIF($B$17:$B658,B285)>1,\"サンプル名が重複しています\",\"\")","v":""},"",""]
[null,null,null,null,{"$f":"IF(COUNTIF($B$17:$B659,B286)>1,\"サンプル名が重複しています\",\"\")","v":""},"",""]
[null,null,null,null,{"$f":"IF(COUNTIF($B$17:$B660,B287)>1,\"サンプル名が重複しています\",\"\")","v":""},"",""]
[null,null,null,null,{"$f":"IF(COUNTIF($B$17:$B661,B288)>1,\"サンプル名が重複しています\",\"\")","v":""},"",""]
[null,null,null,null,{"$f":"IF(COUNTIF($B$17:$B662,B289)>1,\"サンプル名が重複しています\",\"\")","v":""},"",""]
[null,null,null,null,{"$f":"IF(COUNTIF($B$17:$B663,B290)>1,\"サンプル名が重複しています\",\"\")","v":""},"",""]
[null,null,null,null,{"$f":"IF(COUNTIF($B$17:$B664,B291)>1,\"サンプル名が重複しています\",\"\")","v":""},"",""]
[null,null,null,null,{"$f":"IF(COUNTIF($B$17:$B665,B292)>1,\"サンプル名が重複しています\",\"\")","v":""},"",""]
[null,null,null,null,{"$f":"IF(COUNTIF($B$17:$B666,B293)>1,\"サンプル名が重複しています\",\"\")","v":""},"",""]
[null,null,null,null,{"$f":"IF(COUNTIF($B$17:$B667,B294)>1,\"サンプル名が重複しています\",\"\")","v":""},"",""]
[null,null,null,null,{"$f":"IF(COUNTIF($B$17:$B668,B295)>1,\"サンプル名が重複しています\",\"\")","v":""},"",""]
[null,null,null,null,{"$f":"IF(COUNTIF($B$17:$B669,B296)>1,\"サンプル名が重複しています\",\"\")","v":""},"",""]
[null,null,null,null,{"$f":"IF(COUNTIF($B$17:$B670,B297)>1,\"サンプル名が重複しています\",\"\")","v":""},"",""]
[null,null,null,null,{"$f":"IF(COUNTIF($B$17:$B671,B298)>1,\"サンプル名が重複しています\",\"\")","v":""},"",""]
[null,null,null,null,{"$f":"IF(COUNTIF($B$17:$B672,B299)>1,\"サンプル名が重複しています\",\"\")","v":""},"",""]
[null,null,null,null,{"$f":"IF(COUNTIF($B$17:$B673,B300)>1,\"サンプル名が重複しています\",\"\")","v":""},"",""]
[null,null,null,null,{"$f":"IF(COUNTIF($B$17:$B674,B301)>1,\"サンプル名が重複しています\",\"\")","v":""},"",""]
[null,null,null,null,{"$f":"IF(COUNTIF($B$17:$B675,B302)>1,\"サンプル名が重複しています\",\"\")","v":""},"",""]
[null,null,null,null,{"$f":"IF(COUNTIF($B$17:$B676,B303)>1,\"サンプル名が重複しています\",\"\")","v":""},"",""]
[null,null,null,null,{"$f":"IF(COUNTIF($B$17:$B677,B304)>1,\"サンプル名が重複しています\",\"\")","v":""},"",""]
[null,null,null,null,{"$f":"IF(COUNTIF($B$17:$B678,B305)>1,\"サンプル名が重複しています\",\"\")","v":""},"",""]
[null,null,null,null,{"$f":"IF(COUNTIF($B$17:$B679,B306)>1,\"サンプル名が重複しています\",\"\")","v":""},"",""]
[null,null,null,null,{"$f":"IF(COUNTIF($B$17:$B680,B307)>1,\"サンプル名が重複しています\",\"\")","v":""},"",""]
[null,null,null,null,{"$f":"IF(COUNTIF($B$17:$B681,B308)>1,\"サンプル名が重複しています\",\"\")","v":""},"",""]
[null,null,null,null,{"$f":"IF(COUNTIF($B$17:$B682,B309)>1,\"サンプル名が重複しています\",\"\")","v":""},"",""]
[null,null,null,null,{"$f":"IF(COUNTIF($B$17:$B683,B310)>1,\"サンプル名が重複しています\",\"\")","v":""},"",""]
[null,null,null,null,{"$f":"IF(COUNTIF($B$17:$B684,B311)>1,\"サンプル名が重複しています\",\"\")","v":""},"",""]
[null,null,null,null,{"$f":"IF(COUNTIF($B$17:$B685,B312)>1,\"サンプル名が重複しています\",\"\")","v":""},"",""]
[null,null,null,null,{"$f":"IF(COUNTIF($B$17:$B686,B313)>1,\"サンプル名が重複しています\",\"\")","v":""},"",""]
[null,null,null,null,{"$f":"IF(COUNTIF($B$17:$B687,B314)>1,\"サンプル名が重複しています\",\"\")","v":""},"",""]
[null,null,null,null,{"$f":"IF(COUNTIF($B$17:$B688,B315)>1,\"サンプル名が重複しています\",\"\")","v":""},"",""]
[null,null,null,null,{"$f":"IF(COUNTIF($B$17:$B689,B316)>1,\"サンプル名が重複しています\",\"\")","v":""},"",""]
[null,null,null,null,{"$f":"IF(COUNTIF($B$17:$B690,B317)>1,\"サンプル名が重複しています\",\"\")","v":""},"",""]
[null,null,null,null,{"$f":"IF(COUNTIF($B$17:$B691,B318)>1,\"サンプル名が重複しています\",\"\")","v":""},"",""]
[null,null,null,null,{"$f":"IF(COUNTIF($B$17:$B692,B319)>1,\"サンプル名が重複しています\",\"\")","v":""},"",""]
[null,null,null,null,{"$f":"IF(COUNTIF($B$17:$B693,B320)>1,\"サンプル名が重複しています\",\"\")","v":""},"",""]
[null,null,null,null,{"$f":"IF(COUNTIF($B$17:$B694,B321)>1,\"サンプル名が重複しています\",\"\")","v":""},"",""]
[null,null,null,null,{"$f":"IF(COUNTIF($B$17:$B695,B322)>1,\"サンプル名が重複しています\",\"\")","v":""},"",""]
[null,null,null,null,{"$f":"IF(COUNTIF($B$17:$B696,B323)>1,\"サンプル名が重複しています\",\"\")","v":""},"",""]
[null,null,null,null,{"$f":"IF(COUNTIF($B$17:$B697,B324)>1,\"サンプル名が重複しています\",\"\")","v":""},"",""]
[null,null,null,null,{"$f":"IF(COUNTIF($B$17:$B698,B325)>1,\"サンプル名が重複しています\",\"\")","v":""},"",""]
[null,null,null,null,{"$f":"IF(COUNTIF($B$17:$B699,B326)>1,\"サンプル名が重複しています\",\"\")","v":""},"",""]
[null,null,null,null,{"$f":"IF(COUNTIF($B$17:$B700,B327)>1,\"サンプル名が重複しています\",\"\")","v":""},"",""]
[null,null,null,null,{"$f":"IF(COUNTIF($B$17:$B701,B328)>1,\"サンプル名が重複しています\",\"\")","v":""},"",""]
[null,null,null,null,{"$f":"IF(COUNTIF($B$17:$B702,B329)>1,\"サンプル名が重複しています\",\"\")","v":""},"",""]
[null,null,null,null,{"$f":"IF(COUNTIF($B$17:$B703,B330)>1,\"サンプル名が重複しています\",\"\")","v":""},"",""]
[null,null,null,null,{"$f":"IF(COUNTIF($B$17:$B704,B331)>1,\"サンプル名が重複しています\",\"\")","v":""},"",""]
[null,null,null,null,{"$f":"IF(COUNTIF($B$17:$B705,B332)>1,\"サンプル名が重複しています\",\"\")","v":""},"",""]
[null,null,null,null,{"$f":"IF(COUNTIF($B$17:$B706,B333)>1,\"サンプル名が重複しています\",\"\")","v":""},"",""]
[null,null,null,null,{"$f":"IF(COUNTIF($B$17:$B707,B334)>1,\"サンプル名が重複しています\",\"\")","v":""},"",""]
[null,null,null,null,{"$f":"IF(COUNTIF($B$17:$B708,B335)>1,\"サンプル名が重複しています\",\"\")","v":""},"",""]
[null,null,null,null,{"$f":"IF(COUNTIF($B$17:$B709,B336)>1,\"サンプル名が重複しています\",\"\")","v":""},"",""]
[null,null,null,null,{"$f":"IF(COUNTIF($B$17:$B710,B337)>1,\"サンプル名が重複しています\",\"\")","v":""},"",""]
[null,null,null,null,{"$f":"IF(COUNTIF($B$17:$B711,B338)>1,\"サンプル名が重複しています\",\"\")","v":""},{"$f":"IF(D338=\"\",\"\",IF(D338>1,C338&D338))","v":""},{"$f":"IF(F338=\"\",\"\",IF(COUNTIF($F$17:$F$390,F338)>1,\"indexが重複しています\",\"\"))","v":""}]
[null,null,null,null,{"$f":"IF(COUNTIF($B$17:$B712,B339)>1,\"サンプル名が重複しています\",\"\")","v":""},"",""]
[null,null,null,null,{"$f":"IF(COUNTIF($B$17:$B713,B340)>1,\"サンプル名が重複しています\",\"\")","v":""},"",""]
[null,null,null,null,{"$f":"IF(COUNTIF($B$17:$B714,B341)>1,\"サンプル名が重複しています\",\"\")","v":""},"",""]
[null,null,null,null,{"$f":"IF(COUNTIF($B$17:$B715,B342)>1,\"サンプル名が重複しています\",\"\")","v":""},"",""]
[null,null,null,null,{"$f":"IF(COUNTIF($B$17:$B716,B343)>1,\"サンプル名が重複しています\",\"\")","v":""},"",""]
[null,null,null,null,{"$f":"IF(COUNTIF($B$17:$B717,B344)>1,\"サンプル名が重複しています\",\"\")","v":""},"",""]
[null,null,null,null,{"$f":"IF(COUNTIF($B$17:$B718,B345)>1,\"サンプル名が重複しています\",\"\")","v":""},"",""]
[null,null,null,null,{"$f":"IF(COUNTIF($B$17:$B719,B346)>1,\"サンプル名が重複しています\",\"\")","v":""},"",""]
[null,null,null,null,{"$f":"IF(COUNTIF($B$17:$B720,B347)>1,\"サンプル名が重複しています\",\"\")","v":""},"",""]
[null,null,null,null,{"$f":"IF(COUNTIF($B$17:$B721,B348)>1,\"サンプル名が重複しています\",\"\")","v":""},"",""]
[null,null,null,null,{"$f":"IF(COUNTIF($B$17:$B722,B349)>1,\"サンプル名が重複しています\",\"\")","v":""},"",""]
[null,null,null,null,{"$f":"IF(COUNTIF($B$17:$B723,B350)>1,\"サンプル名が重複しています\",\"\")","v":""},"",""]
[null,null,null,null,{"$f":"IF(COUNTIF($B$17:$B724,B351)>1,\"サンプル名が重複しています\",\"\")","v":""},"",""]
[null,null,null,null,{"$f":"IF(COUNTIF($B$17:$B725,B352)>1,\"サンプル名が重複しています\",\"\")","v":""},"",""]
[null,null,null,null,{"$f":"IF(COUNTIF($B$17:$B726,B353)>1,\"サンプル名が重複しています\",\"\")","v":""},"",""]
[null,null,null,null,{"$f":"IF(COUNTIF($B$17:$B727,B354)>1,\"サンプル名が重複しています\",\"\")","v":""},"",""]
[null,null,null,null,{"$f":"IF(COUNTIF($B$17:$B728,B355)>1,\"サンプル名が重複しています\",\"\")","v":""},"",""]
[null,null,null,null,{"$f":"IF(COUNTIF($B$17:$B729,B356)>1,\"サンプル名が重複しています\",\"\")","v":""},"",""]
[null,null,null,null,{"$f":"IF(COUNTIF($B$17:$B730,B357)>1,\"サンプル名が重複しています\",\"\")","v":""},"",""]
[null,null,null,null,{"$f":"IF(COUNTIF($B$17:$B731,B358)>1,\"サンプル名が重複しています\",\"\")","v":""},"",""]
[null,null,null,null,{"$f":"IF(COUNTIF($B$17:$B732,B359)>1,\"サンプル名が重複しています\",\"\")","v":""},"",""]
[null,null,null,null,{"$f":"IF(COUNTIF($B$17:$B733,B360)>1,\"サンプル名が重複しています\",\"\")","v":""},"",""]
[null,null,null,null,{"$f":"IF(COUNTIF($B$17:$B734,B361)>1,\"サンプル名が重複しています\",\"\")","v":""},"",""]
[null,null,null,null,{"$f":"IF(COUNTIF($B$17:$B735,B362)>1,\"サンプル名が重複しています\",\"\")","v":""},"",""]
[null,null,null,null,{"$f":"IF(COUNTIF($B$17:$B736,B363)>1,\"サンプル名が重複しています\",\"\")","v":""},"",""]
[null,null,null,null,{"$f":"IF(COUNTIF($B$17:$B737,B364)>1,\"サンプル名が重複しています\",\"\")","v":""},"",""]
[null,null,null,null,{"$f":"IF(COUNTIF($B$17:$B738,B365)>1,\"サンプル名が重複しています\",\"\")","v":""},"",""]
[null,null,null,null,{"$f":"IF(COUNTIF($B$17:$B739,B366)>1,\"サンプル名が重複しています\",\"\")","v":""},"",""]
[null,null,null,null,{"$f":"IF(COUNTIF($B$17:$B740,B367)>1,\"サンプル名が重複しています\",\"\")","v":""},"",""]
[null,null,null,null,{"$f":"IF(COUNTIF($B$17:$B741,B368)>1,\"サンプル名が重複しています\",\"\")","v":""},"",""]
[null,null,null,null,{"$f":"IF(COUNTIF($B$17:$B742,B369)>1,\"サンプル名が重複しています\",\"\")","v":""},"",""]
[null,null,null,null,{"$f":"IF(COUNTIF($B$17:$B743,B370)>1,\"サンプル名が重複しています\",\"\")","v":""},"",""]
[null,null,null,null,{"$f":"IF(COUNTIF($B$17:$B744,B371)>1,\"サンプル名が重複しています\",\"\")","v":""},"",""]
[null,null,null,null,{"$f":"IF(COUNTIF($B$17:$B745,B372)>1,\"サンプル名が重複しています\",\"\")","v":""},"",""]
[null,null,null,null,{"$f":"IF(COUNTIF($B$17:$B746,B373)>1,\"サンプル名が重複しています\",\"\")","v":""},"",""]
[null,null,null,null,{"$f":"IF(COUNTIF($B$17:$B747,B374)>1,\"サンプル名が重複しています\",\"\")","v":""},"",""]
[null,null,null,null,{"$f":"IF(COUNTIF($B$17:$B748,B375)>1,\"サンプル名が重複しています\",\"\")","v":""},"",""]
[null,null,null,null,{"$f":"IF(COUNTIF($B$17:$B749,B376)>1,\"サンプル名が重複しています\",\"\")","v":""},"",""]
[null,null,null,null,{"$f":"IF(COUNTIF($B$17:$B750,B377)>1,\"サンプル名が重複しています\",\"\")","v":""},"",""]
[null,null,null,null,{"$f":"IF(COUNTIF($B$17:$B751,B378)>1,\"サンプル名が重複しています\",\"\")","v":""},"",""]
[null,null,null,null,{"$f":"IF(COUNTIF($B$17:$B752,B379)>1,\"サンプル名が重複しています\",\"\")","v":""},"",""]
[null,null,null,null,{"$f":"IF(COUNTIF($B$17:$B753,B380)>1,\"サンプル名が重複しています\",\"\")","v":""},"",""]
[null,null,null,null,{"$f":"IF(COUNTIF($B$17:$B754,B381)>1,\"サンプル名が重複しています\",\"\")","v":""},"",""]
[null,null,null,null,{"$f":"IF(COUNTIF($B$17:$B755,B382)>1,\"サンプル名が重複しています\",\"\")","v":""},"",""]
[null,null,null,null,{"$f":"IF(COUNTIF($B$17:$B756,B383)>1,\"サンプル名が重複しています\",\"\")","v":""},"",""]
[null,null,null,null,{"$f":"IF(COUNTIF($B$17:$B757,B384)>1,\"サンプル名が重複しています\",\"\")","v":""},"",""]
[null,null,null,null,{"$f":"IF(COUNTIF($B$17:$B758,B385)>1,\"サンプル名が重複しています\",\"\")","v":""},"",""]
[null,null,null,null,{"$f":"IF(COUNTIF($B$17:$B759,B386)>1,\"サンプル名が重複しています\",\"\")","v":""},"",""]
[null,null,null,null,{"$f":"IF(COUNTIF($B$17:$B760,B387)>1,\"サンプル名が重複しています\",\"\")","v":""},"",""]
[null,null,null,null,{"$f":"IF(COUNTIF($B$17:$B761,B388)>1,\"サンプル名が重複しています\",\"\")","v":""},"",""]
[null,null,null,null,{"$f":"IF(COUNTIF($B$17:$B762,B389)>1,\"サンプル名が重複しています\",\"\")","v":""},"",""]
[null,null,null,null,{"$f":"IF(COUNTIF($B$17:$B763,B390)>1,\"サンプル名が重複しています\",\"\")","v":""},"",""]

{"sheet":"【D】Comparison Pair information","index":4,"n_rows":125,"n_cols":22,"rows_kept":125,"cut":false,"hidden":false,"merged":[[12,14,12,16],[13,18,14,18],[13,19,14,19],[13,20,14,20],[13,21,14,21],[28,20,29,20],[28,21,29,21],[26,12,26,13],[27,14,27,16],[28,18,29,18],[28,19,29,19],[4,8,5,8],[4,9,5,9],[1,0,1,4],[1,6,1,9],[4,6,5,6],[4,7,5,7],[3,2,3,4],[2,0,2,4],[10,12,11,13],[4,21,5,21],[2,12,2,13],[3,14,3,16],[4,18,5,18],[4,19,5,19],[4,20,5,20]]}
["こちらのシートは弊社にてサンプル間の比較解析（DEG解析）を実施するお客様のみご記入ください。"]
["インフォマティクス解析でサンプル(群)間の比較をご希望の際は、\n比較するサンプルのグループ名をご指定ください (n=1の場合はサンプル名=グループ名)。\nグループ名は半角英数字 15文字以内で設定お願いします（記号は-及び_のみ使用可能）。\n\n1サンプルを複数グループでの比較に使用する場合は、\nSample Group Nameを複数設定お願いします（右側記入例2）。\n※Sample Nameは【B】Sample information Sheetに記入いただいたものが反映されます。",null,null,null,null,null,"比較パターンをサンプルグループ名でご記入ください。\n比較パターンは必ず Test vs Control の順でご記入ください。\n\n比較パターンの数によって追加費用がかかることがございます。\n再度データ解析を行います際は追加費用が発生することがございます。"]
["※n=1で比較を行う際はサンプル名＝グループ名となるため、\n右側の比較パターンのみのご記入で問題ございません。",null,null,null,null,null,null,null,null,null,null,null,"記入例1 "]
[null,"Sample name","Sample Group name(15文字以内)",null,null,null,null,"Test Sample Group Name",null,"Control Sample Group Name",null,null,null,"Sample name","Sample Group name",null,null,null,null,"Test Sample Group Name",null,"Control Sample Group Name"]
["例1",1,"WT",null,null,null,"例","KO","vs","WT",null,null,1,"ControlA","Control",null,null,null,"例","KO","vs","WT"]
["例2",2,"KO",null,null,null,null,null,null,null,null,null,2,"ControlB","Control"]
[1,{"$f":"IF('【B】Sample information'!B15=\"\",\"\",'【B】Sample information'!B15)","v":""},null,null,null,null,1,null,"vs",null,null,null,3,"DrugA","Drug",null,null,null,1,"Drug","vs","Control"]
[2,{"$f":"IF('【B】Sample information'!B16=\"\",\"\",'【B】Sample information'!B16)","v":""},null,null,null,null,2,null,"vs",null,null,null,4,"DrugB","Drug",null,null,null,2,"DrugA","vs","ControlA"]
[3,{"$f":"IF('【B】Sample information'!B17=\"\",\"\",'【B】Sample information'!B17)","v":""},null,null,null,null,3,null,"vs",null,null,null,null,null,null,null,null,null,3,"DrugB","vs","ControlB"]
[4,{"$f":"IF('【B】Sample information'!B18=\"\",\"\",'【B】Sample information'!B18)","v":""},null,null,null,null,4,null,"vs"]
[5,{"$f":"IF('【B】Sample information'!B19=\"\",\"\",'【B】Sample information'!B19)","v":""},null,null,null,null,5,null,"vs",null,null,null,"記入例2"]
[6,{"$f":"IF('【B】Sample information'!B20=\"\",\"\",'【B】Sample information'!B20)","v":""},null,null,null,null,6,null,"vs"]
[7,{"$f":"IF('【B】Sample information'!B21=\"\",\"\",'【B】Sample information'!B21)","v":""},null,null,null,null,7,null,"vs",null,null,null,null,"Sample name","Sample Group name",null,null,null,null,"Test Sample Group Name",null,"Control Sample Group Name"]
[8,{"$f":"IF('【B】Sample information'!B22=\"\",\"\",'【B】Sample information'!B22)","v":""},null,null,null,null,8,null,"vs",null,null,null,1,1,"0h","0h-1",null,null,"例","KO","vs","WT"]
[9,{"$f":"IF('【B】Sample information'!B23=\"\",\"\",'【B】Sample information'!B23)","v":""},null,null,null,null,9,null,"vs",null,null,null,2,2,"0h","0h-1"]
[10,{"$f":"IF('【B】Sample information'!B24=\"\",\"\",'【B】Sample information'!B24)","v":""},null,null,null,null,10,null,"vs",null,null,null,3,3,"0h",null,null,null,1,"24h","vs","0h"]
[11,{"$f":"IF('【B】Sample information'!B25=\"\",\"\",'【B】Sample information'!B25)","v":""},null,null,null,null,11,null,"vs",null,null,null,4,4,"0h","0h-1",null,null,2,"24h-1","vs","0h-1"]
[12,{"$f":"IF('【B】Sample information'!B26=\"\",\"\",'【B】Sample information'!B26)","v":""},null,null,null,null,12,null,"vs",null,null,null,5,5,"12h","12h-1",null,null,3,"12h","vs","0h"]
[13,{"$f":"IF('【B】Sample information'!B27=\"\",\"\",'【B】Sample information'!B27)","v":""},null,null,null,null,13,null,"vs",null,null,null,6,6,"12h",null,null,null,4,"12h-1","vs","0h-1"]
[14,{"$f":"IF('【B】Sample information'!B28=\"\",\"\",'【B】Sample information'!B28)","v":""},null,null,null,null,14,null,"vs",null,null,null,7,7,"12h","12h-1",null,null,5,"24h","vs","12h"]
[15,{"$f":"IF('【B】Sample information'!B29=\"\",\"\",'【B】Sample information'!B29)","v":""},null,null,null,null,15,null,"vs",null,null,null,8,8,"12h","12h-1",null,null,6,"24h-1","vs","12h-1"]
[16,{"$f":"IF('【B】Sample information'!B30=\"\",\"\",'【B】Sample information'!B30)","v":""},null,null,null,null,16,null,"vs",null,null,null,9,9,"24h","24h-1"]
[17,{"$f":"IF('【B】Sample information'!B31=\"\",\"\",'【B】Sample information'!B31)","v":""},null,null,null,null,17,null,"vs",null,null,null,10,10,"24h","24h-1"]
[18,{"$f":"IF('【B】Sample information'!B32=\"\",\"\",'【B】Sample information'!B32)","v":""},null,null,null,null,18,null,"vs",null,null,null,11,11,"24h","24h-1"]
[19,{"$f":"IF('【B】Sample information'!B33=\"\",\"\",'【B】Sample information'!B33)","v":""},null,null,null,null,19,null,"vs",null,null,null,12,12,"24h"]
[20,{"$f":"IF('【B】Sample information'!B34=\"\",\"\",'【B】Sample information'!B34)","v":""},null,null,null,null,20,null,"vs"]
[null,{"$f":"IF('【B】Sample information'!B35=\"\",\"\",'【B】Sample information'!B35)","v":""}]
[null,{"$f":"IF('【B】Sample information'!B36=\"\",\"\",'【B】Sample information'!B36)","v":""}]
[null,{"$f":"IF('【B】Sample information'!B37=\"\",\"\",'【B】Sample information'!B37)","v":""}]
[null,{"$f":"IF('【B】Sample information'!B38=\"\",\"\",'【B】Sample information'!B38)","v":""}]
[null,{"$f":"IF('【B】Sample information'!B39=\"\",\"\",'【B】Sample information'!B39)","v":""}]
[null,{"$f":"IF('【B】Sample information'!B40=\"\",\"\",'【B】Sample information'!B40)","v":""}]
[null,{"$f":"IF('【B】Sample information'!B41=\"\",\"\",'【B】Sample information'!B41)","v":""}]
[null,{"$f":"IF('【B】Sample information'!B42=\"\",\"\",'【B】Sample information'!B42)","v":""}]
[null,{"$f":"IF('【B】Sample information'!B43=\"\",\"\",'【B】Sample information'!B43)","v":""}]
[null,{"$f":"IF('【B】Sample information'!B44=\"\",\"\",'【B】Sample information'!B44)","v":""}]
[null,{"$f":"IF('【B】Sample information'!B45=\"\",\"\",'【B】Sample information'!B45)","v":""}]
[null,{"$f":"IF('【B】Sample information'!B46=\"\",\"\",'【B】Sample information'!B46)","v":""}]
[null,{"$f":"IF('【B】Sample information'!B47=\"\",\"\",'【B】Sample information'!B47)","v":""}]
[null,{"$f":"IF('【B】Sample information'!B48=\"\",\"\",'【B】Sample information'!B48)","v":""}]
[null,{"$f":"IF('【B】Sample information'!B49=\"\",\"\",'【B】Sample information'!B49)","v":""}]
[null,{"$f":"IF('【B】Sample information'!B50=\"\",\"\",'【B】Sample information'!B50)","v":""}]
[null,{"$f":"IF('【B】Sample information'!B51=\"\",\"\",'【B】Sample information'!B51)","v":""}]
[null,{"$f":"IF('【B】Sample information'!B52=\"\",\"\",'【B】Sample information'!B52)","v":""}]
[null,{"$f":"IF('【B】Sample information'!B53=\"\",\"\",'【B】Sample information'!B53)","v":""}]
[null,{"$f":"IF('【B】Sample information'!B54=\"\",\"\",'【B】Sample information'!B54)","v":""}]
[null,{"$f":"IF('【B】Sample information'!B55=\"\",\"\",'【B】Sample information'!B55)","v":""}]
[null,{"$f":"IF('【B】Sample information'!B56=\"\",\"\",'【B】Sample information'!B56)","v":""}]
[null,{"$f":"IF('【B】Sample information'!B57=\"\",\"\",'【B】Sample information'!B57)","v":""}]
[null,{"$f":"IF('【B】Sample information'!B58=\"\",\"\",'【B】Sample information'!B58)","v":""}]
[null,{"$f":"IF('【B】Sample information'!B59=\"\",\"\",'【B】Sample information'!B59)","v":""}]
[null,{"$f":"IF('【B】Sample information'!B60=\"\",\"\",'【B】Sample information'!B60)","v":""}]
[null,{"$f":"IF('【B】Sample information'!B61=\"\",\"\",'【B】Sample information'!B61)","v":""}]
[null,{"$f":"IF('【B】Sample information'!B62=\"\",\"\",'【B】Sample information'!B62)","v":""}]
[null,{"$f":"IF('【B】Sample information'!B63=\"\",\"\",'【B】Sample information'!B63)","v":""}]
[null,{"$f":"IF('【B】Sample information'!B64=\"\",\"\",'【B】Sample information'!B64)","v":""}]
[null,{"$f":"IF('【B】Sample information'!B65=\"\",\"\",'【B】Sample information'!B65)","v":""}]
[null,{"$f":"IF('【B】Sample information'!B66=\"\",\"\",'【B】Sample information'!B66)","v":""}]
[null,{"$f":"IF('【B】Sample information'!B67=\"\",\"\",'【B】Sample information'!B67)","v":""}]
[null,{"$f":"IF('【B】Sample information'!B68=\"\",\"\",'【B】Sample information'!B68)","v":""}]
[null,{"$f":"IF('【B】Sample information'!B69=\"\",\"\",'【B】Sample information'!B69)","v":""}]
[null,{"$f":"IF('【B】Sample information'!B70=\"\",\"\",'【B】Sample information'!B70)","v":""}]
[null,{"$f":"IF('【B】Sample information'!B71=\"\",\"\",'【B】Sample information'!B71)","v":""}]
[null,{"$f":"IF('【B】Sample information'!B72=\"\",\"\",'【B】Sample information'!B72)","v":""}]
[null,{"$f":"IF('【B】Sample information'!B73=\"\",\"\",'【B】Sample information'!B73)","v":""}]
[null,{"$f":"IF('【B】Sample information'!B74=\"\",\"\",'【B】Sample information'!B74)","v":""}]
[null,{"$f":"IF('【B】Sample information'!B75=\"\",\"\",'【B】Sample information'!B75)","v":""}]
[null,{"$f":"IF('【B】Sample information'!B76=\"\",\"\",'【B】Sample information'!B76)","v":""}]
[null,{"$f":"IF('【B】Sample information'!B77=\"\",\"\",'【B】Sample information'!B77)","v":""}]
[null,{"$f":"IF('【B】Sample information'!B78=\"\",\"\",'【B】Sample information'!B78)","v":""}]
[null,{"$f":"IF('【B】Sample information'!B79=\"\",\"\",'【B】Sample information'!B79)","v":""}]
[null,{"$f":"IF('【B】Sample information'!B80=\"\",\"\",'【B】Sample information'!B80)","v":""}]
[null,{"$f":"IF('【B】Sample information'!B81=\"\",\"\",'【B】Sample information'!B81)","v":""}]
[null,{"$f":"IF('【B】Sample information'!B82=\"\",\"\",'【B】Sample information'!B82)","v":""}]
[null,{"$f":"IF('【B】Sample information'!B83=\"\",\"\",'【B】Sample information'!B83)","v":""}]
[null,{"$f":"IF('【B】Sample information'!B84=\"\",\"\",'【B】Sample information'!B84)","v":""}]
[null,{"$f":"IF('【B】Sample information'!B85=\"\",\"\",'【B】Sample information'!B85)","v":""}]
[null,{"$f":"IF('【B】Sample information'!B86=\"\",\"\",'【B】Sample information'!B86)","v":""}]
[null,{"$f":"IF('【B】Sample information'!B87=\"\",\"\",'【B】Sample information'!B87)","v":""}]
[null,{"$f":"IF('【B】Sample information'!B88=\"\",\"\",'【B】Sample information'!B88)","v":""}]
[null,{"$f":"IF('【B】Sample information'!B89=\"\",\"\",'【B】Sample information'!B89)","v":""}]
[null,{"$f":"IF('【B】Sample information'!B90=\"\",\"\",'【B】Sample information'!B90)","v":""}]
[null,{"$f":"IF('【B】Sample information'!B91=\"\",\"\",'【B】Sample information'!B91)","v":""}]
[null,{"$f":"IF('【B】Sample information'!B92=\"\",\"\",'【B】Sample information'!B92)","v":""}]
[null,{"$f":"IF('【B】Sample information'!B93=\"\",\"\",'【B】Sample information'!B93)","v":""}]
[null,{"$f":"IF('【B】Sample information'!B94=\"\",\"\",'【B】Sample information'!B94)","v":""}]
[null,{"$f":"IF('【B】Sample information'!B95=\"\",\"\",'【B】Sample information'!B95)","v":""}]
[null,{"$f":"IF('【B】Sample information'!B96=\"\",\"\",'【B】Sample information'!B96)","v":""}]
[null,{"$f":"IF('【B】Sample information'!B97=\"\",\"\",'【B】Sample information'!B97)","v":""}]
[null,{"$f":"IF('【B】Sample information'!B98=\"\",\"\",'【B】Sample information'!B98)","v":""}]
[null,{"$f":"IF('【B】Sample information'!B99=\"\",\"\",'【B】Sample information'!B99)","v":""}]
[null,{"$f":"IF('【B】Sample information'!B100=\"\",\"\",'【B】Sample information'!B100)","v":""}]
[null,{"$f":"IF('【B】Sample information'!B101=\"\",\"\",'【B】Sample information'!B101)","v":""}]
[null,{"$f":"IF('【B】Sample information'!B102=\"\",\"\",'【B】Sample information'!B102)","v":""}]
[null,{"$f":"IF('【B】Sample information'!B103=\"\",\"\",'【B】Sample information'!B103)","v":""}]
[null,{"$f":"IF('【B】Sample information'!B104=\"\",\"\",'【B】Sample information'!B104)","v":""}]
[null,{"$f":"IF('【B】Sample information'!B105=\"\",\"\",'【B】Sample information'!B105)","v":""}]
[null,{"$f":"IF('【B】Sample information'!B106=\"\",\"\",'【B】Sample information'!B106)","v":""}]
[null,{"$f":"IF('【B】Sample information'!B107=\"\",\"\",'【B】Sample information'!B107)","v":""}]
[null,{"$f":"IF('【B】Sample information'!B108=\"\",\"\",'【B】Sample information'!B108)","v":""}]
[null,{"$f":"IF('【B】Sample information'!B109=\"\",\"\",'【B】Sample information'!B109)","v":""}]
[null,{"$f":"IF('【B】Sample information'!B110=\"\",\"\",'【B】Sample information'!B110)","v":""}]
[null,{"$f":"IF('【B】Sample information'!B111=\"\",\"\",'【B】Sample information'!B111)","v":""}]
[null,{"$f":"IF('【B】Sample information'!B112=\"\",\"\",'【B】Sample information'!B112)","v":""}]
[null,{"$f":"IF('【B】Sample information'!B113=\"\",\"\",'【B】Sample information'!B113)","v":""}]
[null,{"$f":"IF('【B】Sample information'!B114=\"\",\"\",'【B】Sample information'!B114)","v":""}]
[null,{"$f":"IF('【B】Sample information'!B115=\"\",\"\",'【B】Sample information'!B115)","v":""}]
[null,{"$f":"IF('【B】Sample information'!B116=\"\",\"\",'【B】Sample information'!B116)","v":""}]
[null,{"$f":"IF('【B】Sample information'!B117=\"\",\"\",'【B】Sample information'!B117)","v":""}]
[null,{"$f":"IF('【B】Sample information'!B118=\"\",\"\",'【B】Sample information'!B118)","v":""}]
[null,{"$f":"IF('【B】Sample information'!B119=\"\",\"\",'【B】Sample information'!B119)","v":""}]
[null,{"$f":"IF('【B】Sample information'!B120=\"\",\"\",'【B】Sample information'!B120)","v":""}]
[null,{"$f":"IF('【B】Sample information'!B121=\"\",\"\",'【B】Sample information'!B121)","v":""}]
[null,{"$f":"IF('【B】Sample information'!B122=\"\",\"\",'【B】Sample information'!B122)","v":""}]
[null,{"$f":"IF('【B】Sample information'!B123=\"\",\"\",'【B】Sample information'!B123)","v":""}]
[null,{"$f":"IF('【B】Sample information'!B124=\"\",\"\",'【B】Sample information'!B124)","v":""}]
[null,{"$f":"IF('【B】Sample information'!B125=\"\",\"\",'【B】Sample information'!B125)","v":""}]
[null,{"$f":"IF('【B】Sample information'!B126=\"\",\"\",'【B】Sample information'!B126)","v":""}]
[null,{"$f":"IF('【B】Sample information'!B127=\"\",\"\",'【B】Sample information'!B127)","v":""}]
[null,{"$f":"IF('【B】Sample information'!B128=\"\",\"\",'【B】Sample information'!B128)","v":""}]
[null,{"$f":"IF('【B】Sample information'!B129=\"\",\"\",'【B】Sample information'!B129)","v":""}]
[null,{"$f":"IF('【B】Sample information'!B130=\"\",\"\",'【B】Sample information'!B130)","v":""}]
[null,{"$f":"IF('【B】Sample information'!B131=\"\",\"\",'【B】Sample information'!B131)","v":""}]
[null,{"$f":"IF('【B】Sample information'!B132=\"\",\"\",'【B】Sample information'!B132)","v":""}]
[null,{"$f":"IF('【B】Sample information'!B133=\"\",\"\",'【B】Sample information'!B133)","v":""}]

{"sheet":"【E】Sample Prep. information","index":5,"n_rows":9,"n_cols":3,"rows_kept":9,"cut":false,"hidden":false,"merged":[]}
["こちらのシートは核酸抽出からご希望のお客様のみご記入ください。"]
[]
["サンプル生物種","選択してください",{"$f":"VLOOKUP(B3,マクロジェン使用欄!A195:B204,2,FALSE)","v":" "}]
["※必ず先にサンプル生物種をご選択ください。"]
["検体種類","選択してください",{"$f":"VLOOKUP(B5,マクロジェン使用欄!A175:B193,2,FALSE)","v":" "}]
[]
["懸濁(破砕)Buffer"]
[null,"※自由記入欄、ない場合は「無し」とご記入ください。"]
[null,"※RNAlaterのような保存液、TriZol、QIAzol以外に懸濁されている場合は、弊社で対応可能かご確認ください。"]

{"sheet":"サンプル条件一覧","index":6,"n_rows":78,"n_cols":9,"rows_kept":78,"cut":false,"hidden":false,"merged":[[77,0,77,7],[31,0,33,0],[2,0,2,1],[60,0,65,0],[6,0,8,0],[16,0,22,0],[48,0,59,0],[29,0,29,6],[9,0,15,0],[23,0,27,0],[37,0,47,0]]}
["Sample Quality Check(QC)の際にsampleを2-3ulを使用します。Sample volumeは余裕をもってご準備下さい。"]
["下記サンプル基準は2023年10月18日時点の基準となります。"]
[]
["Illumina DNA Library"]
["ライブラリー調製に使用するKitをご確認の上、下記条件のDNAをご準備ください。"]
["Library Type ","Library Kit ","Sample Type","Total Amount","Conc.","DIN","etc"]
["Amplicon DNA library ","Metagenome Amplicon","gDNA",null,"> 0.1ng/ul",null,">10ul"]
[null,"target amplicon DNA (2nd PCR)","Amplicon",null,"> 0.1ng/ul",null,">10ul"]
[null,"TruSeq Nano DNA (LMW)","Amplicon etc."," 0.1ug"]
["Targeted DNA library","SureSelect V5, V6, V7, V8","gDNA","0.5ug",null,"7.0"]
[null,"SureSelect V5, V6, V7, V8","FFPE由来gDNA","0.2ug"]
[null,"SureSelect Mouse ","gDNA","0.5ug",null,"7.0"]
[null,"Twist Human Core Exome","gDNA","0.05ug",null,"7.0"]
[null,"Twist Human Core Exome","FFPE由来gDNA","0.2ug"]
[null,"SureSelect Human Methyl-seq","gDNA","3.0ug",null,"7.0"]
[null,"SureSelect Mouse Methyl-seq","gDNA","3.0ug",null,"7.0"]
["Whole Genome library ","TruSeq Nano DNA (350) ","gDNA","0.1ug",null,"7.0"]
[null,"TruSeq Nano DNA (550) ","gDNA","0.2ug",null,"7.0"]
[null,"TruSeq DNA PCR Free (350)","gDNA","1.0ug",null,"7.0"]
[null,"TruSeq DNA PCR Free (550) ","gDNA","2.0ug",null,"7.0"]
[null,"Nextera DNA XT ","gDNA","0.001ug",null,"7.0"]
[null,"Accel Methyl-Seq DNA library ","gDNA","0.2ug",null,7]
[null,"TruSeq ChIP-seq library ","gDNA","0.01ug"]
["Shotgun Metagenome\nLibrary","TruSeq Nano DNA (350) ","gDNA","0.1ug",null,3]
[null,"TruSeq Nano DNA (550) ","gDNA","0.2ug",null,3]
[null,"TruSeq DNA PCR Free (350)","gDNA","1.0ug",null,3]
[null,"Nextera DNA XT ","gDNA","0.001ug",null,3]
[null,"illumina DNA Prep.","gDNA","0.05ug",null,7]
["PacBio　DNA Library"]
["ライブラリー調製に使用するKitをご確認の上、下記条件のDNAをご準備ください。"]
["Library Type","Library Kit","Type","Total Amount","Conc.","Avg. Size(BP)","etc"]
["Long Read Library","[3.0] PacBio Microbial Library ","gDNA","3.1ug",null,15000]
[null,"[3.0] PacBio Amplicon Library","Amplicon","0.5ug"]
[null,"[3.0] PacBio HiFi Library","gDNA","7.1ug",null,20000]
["Illumina　RNA Library"]
["ライブラリー調製に使用するKitをご確認の上、下記条件のRNAをご準備ください。"]
["Library Type ","Library Kit","Type","Total\nAmount","Conc."," RIN","rRNA ratio","DV200","etc"]
["mRNA library","TruSeq stranded mRNA ","mRNA","0.1ug"]
[null,"TruSeq stranded mRNA","Total RNA","1.0ug",null,7,1]
[null,"TruSeq stranded mRNA","exosomal RNA","0.01ug"]
[null,"SMART-Seq v4 (SMARTer Ultra low input RNA library)","Total RNA","0.01ug",null,7,1]
[null,"SMARTer Stranded RNA library　(PolyA)","Total RNA","0.1ug",null,7,1]
[null,"TruSeq RNA Exome (TruSeq RNA Access)","Total RNA","0.1ug",null,null,null,0.5]
[null,"TruSeq RNA Exome (TruSeq RNA Access)","FFPE RNA","0.2ug",null,null,null,0.5]
[null,"SureSelect RNA Direct_Human","Total RNA","0.1ug",null,null,null,0.5]
[null,"SureSelect RNA Direct_Human","FFPE RNA","0.2ug",null,null,null,0.5]
[null,"SureSelect RNA Direct_Mouse","Total RNA","0.1ug",null,null,null,0.5]
[null,"SureSelect RNA Direct_Mouse","FFPE RNA","0.2ug",null,null,null,0.5]
["Small RNA library","TruSeq Small RNA library","Total RNA","3.0ug",null,7,1]
[null,"TruSeq Small RNA library","small RNA","0.1ug"]
[null,"TruSeq Small RNA library","exosomal RNA","0.01ug"]
[null,"SMARTer Small RNA library","Total RNA","0.05ug",null,7,1]
[null,"SMARTer Small RNA library","small RNA","0.01ug"]
[null,"SMARTer Small RNA library","exosomal RNA","0.01ug"]
[null,"NEBNext Small RNA library","Total RNA","1.0ug",null,7,1]
[null,"NEBNext Small RNA library","small RNA","0.1ug"]
[null,"NEBNext Small RNA library","exosomal RNA","0.01ug"]
[null,"QIAseq miRNA Library","Total RNA","0.5 ug",null,7,1]
[null,"QIAseq miRNA Library","small RNA","0.1ug"]
[null,"QIAseq miRNA Library","exosomal RNA","0.01ug"]
["Total RNA library","TruSeq Stranded Total RNA with Ribo-Zero Plus","Total RNA","0.5ug",null,7,1]
[null,"TruSeq Stranded Total RNA with Ribo-Zero H/M/R_Gold","Total RNA","0.5ug",null,7,1]
[null,"TruSeq Stranded Total RNA with Ribo-Zero H/M/R_Globin ","Total RNA","0.5ug",null,7,1]
[null,"TruSeq Stranded Total RNA with Ribo-Zero Plant","Total RNA","0.5ug",null,7,1]
[null,"TruSeq Stranded Total RNA (NEB Microbe)","Total RNA","0.5ug",null,7,1]
[null,"SMARTer Stranded RNA library　(RiboZero)","Total RNA","0.1ug",null,7,1]
["PacBio　RNA Library"]
["ライブラリー調製に使用するKitをご確認の上、下記条件のRNAをご準備ください。"]
["Library Type ","Library Kit","Type","Total\nAmount",null," RIN","rRNA ratio","DV200","etc"]
["Long Read Library","[3.0] PacBio Iso-Seq Library","Total RNA","0.3ug",null,7]
["Library Sequence (Run Only)"]
["調製済みライブラリーをご送付いただく際は下記の濃度、液量をご準備ください。"]
["Platform","Library Type","Type","Conc\n(nM)","Conc\n(ng/ul)","Size(bp)\nFrom","Size(bp)\nTo"," etc"]
["NovaSeq6000","NGS library (Ready to Run)","Library",10,null,null,null,"at least 20ul"]
["NovaSeq X Plus","NGS library (Ready to Run)","Library",10,null,null,null,"at least 20ul"]
["MiSeq","NGS library (Ready to Run)","Library",5,null,null,null,"at least 20ul"]
["HiSeqX","NGS library (Ready to Run)","Library",5,null,null,null,"at least 20ul"]
["カスタムプライマーとを使用したシーケンスをご希望の場合、必ず事前に営業担当へご相談下さい。\nプライマーは必ず案件ごと、都度ご送付下さい。プライマーは100 µM、10 µl程度でご送付をお願い致します。\nプライマーの濃度、液量をSequencing informationシートの特記事項欄にご記入いただくようお願い致します。"]

{"sheet":"マクロジェン使用欄","index":7,"n_rows":204,"n_cols":17,"rows_kept":204,"cut":false,"hidden":true,"merged":[]}
[null,null,null,null,null,null,null,null,null,null,null,null,null,null,null,"Whole_Genome_Sequencing ","全ゲノムシーケンス"]
["NovaSeq_どちらでも可","RNA_Seq",null,null,null,null,null,null,null,null,null,null,null,null,null,"Exome_Sequencing","全エキソームシーケンス"]
["NovaSeq_X_Plus","Whole_Genome_Sequencing ","Exome_Sequencing","Transcriptome_Sequencing","Library_Sequencing","others",null,null,null,null,null,null,null,null,null,"Transcriptome_Sequencing","網羅的遺伝子発現解析(RNA-Seq)"]
["NovaSeq6000","Whole_Genome_Sequencing ","Exome_Sequencing","Transcriptome_Sequencing","Library_Sequencing","Amplicon_Sequencing","Methylation_WGBS_Sequencing","Target_Methylation_Suquencing","ChIP_Sequencing","Metagenome_Shotgun_Sequencing","Small_RNA_Sequencing","others",null,null,null,"Library_Sequencing","調製済みライブラリーのシーケンス"]
["MiSeq","Metagenome_16s_18s_Sequencing","Amplicon_Sequencing","Library_Sequencing","Whole_Genome_Sequencing ","others",null,null,null,null,null,null,null,null,null,"Amplicon_Sequencing","PCR産物などの低分子DNAのシーケンス"]
["NextSeq","Library_Sequencing","others",null,null,null,null,null,null,null,null,null,null,null,null,"Methylation_WGBS_Sequencing","メチル化解析を目的とした全ゲノムバイサルファイトシーケンス"]
["PacBio_SequelⅡ","Whole_Genome_Sequencing ","Amplicon_Sequencing","Library_Sequencing","Iso_Seqeuncing","others",null,null,null,null,null,null,null,null,null,"Target_Methylation_Suquencing","メチル化解析を目的としたターゲットエンリッチメントシーケンス"]
["PacBio_Revio","Whole_Genome_Sequencing ","Library_Sequencing","others",null,null,null,null,null,null,null,null,null,null,null,"Metagenome_Shotgun_Sequencing","ショットガンメタゲノム解析"]
["others",null,null,null,null,null,null,null,null,null,null,null,null,null,null,"Small_RNA_Sequencing","Small RNAをターゲットとした発現解析"]
[null,null,null,null,null,null,null,null,null,null,null,null,null,null,null,"others","その他"]
["RNA_Seq","TruSeq stranded mRNA Library","TruSeq stranded Total RNA / Ribo-zero Plus","TruSeq RNA Exome(Access)",null,null,null,null,null,null,null,null,null,null,null,"Metagenome_16s_18s_Sequencing","細菌叢解析"]
["Whole_Genome_Sequencing ","TruSeq Nano DNA Library","TruSeq DNA PCR-free Library","SMRTbell Prep Kit","others",null,null,null,null,null,null,null,null,null,null,"ChIP_Sequencing","クロマチン免疫沈降を行ったDNAのシーケンス"]
["Exome_Sequencing","SureSelect Human V6","SureSelect Human V6 + COSMIC","SureSelect Human V6 + UTR","SureSelect Human V5","SureSelect Human V7","SureSelect Human V8","SureSelect mouse","Twist Human Core Exome","Twist Human Core Exome 2.0","Twist Human Core Exome + RefSeq","others",null,null,null,"Iso_Seqeuncing","PacBioを使用した転写産物の全長解析"]
["Transcriptome_Sequencing","TruSeq stranded mRNA Library","TruSeq stranded Total RNA / Ribo-zero Plus","TruSeq stranded Total RNA / Ribo-zero Gold","TruSeq stranded Total RNA / Ribo-zero Globin","TruSeq stranded Total RNA / Ribo-zero Plant","TruSeq stranded Total RNA Library(bacteria)","SMARTer stranded RNA (Ribo-Zero)","SMARTer stranded RNA (PolyA)","SMARTer Universal Low Input RNA Kit","SMART-Seq Ultra low input RNA Kit","TruSeq RNA Exome(Access)","SureSelect RNA Direct","others",null,"RNA_Seq","網羅的遺伝子発現解析(RNA-Seq)"]
["Amplicon_Sequencing","TruSeq nano DNA Library","SMRTbell Prep Kit","Amplicon　2ndPCRから","others"]
["Library_Sequencing","調製済み"]
["Methylation_WGBS_Sequencing","Accel-NGS Methyl-Seq DNA Library","others"]
["Target_Methylation_Suquencing","SureSelect Human Methyl-seq","SureSelect Mouse Methyl-seq","others"]
["ChIP_Sequencing","TruSeq ChIP Library"]
["Iso_Seqeuncing","SMRTbell Prep Kit"]
["Metagenome_Shotgun_Sequencing","TruSeq Nano DNA Library","TruSeq DNA PCR-free Library","Nextera DNA XT Kit","Illumina DNA Prep. Kit","others"]
["Metagenome_16s_18s_Sequencing","16S rRNA(V3-V4)　1stPCRから","18S rRNA(ITS)　1stPCRから","others"]
["Small_RNA_Sequencing","TruSeq small RNA Library","SMARTer smRNA-Seq Kit","NEBNext Small RNA library","others"]
["others","others"]
[null,null,"Single End"]
["50bp"," ","Paired End"]
["75bp","NestSeqのみ","PacBio"]
["100bp","　"]
["150bp","　"]
["250bp","MiSeqのみ"]
["300bp","MiSeqのみ"]
["PacBio","　",null,"データ量_相乗り_プラン","1サンプル当たりのデータ量を決めてシーケンスを実施"]
["データ量_相乗り_プラン","Gb/sample","Reads/sample","lane_Run_Cell_買取","シーケンサーのレーン/ラン/セルを買い取ってシーケンスを実施"]
["lane_Run_Cell_買取","lane/Run/Cell",null,"NovaSeqX_レーン相乗りプラン","NovaSeqX 1レーンのうち、1/2 もしくは 1/4レーンを使用してシーケンスを実施"]
["NovaSeqX_レーン相乗りプラン","1/2 lane/sample","1/4 lane/sample","Gb/sample","取得データ量をご記入下さい。"]
[null,null,null,"Reads/sample","MiSeqを使用したデータ量プラン。取得リード数をご記入ください。"]
["Nextera DNA XT Kit","　",null,"lane/Run/Cell","総買取レーン/ラン/セル数をご記入ください。"]
["Illumina DNA Prep. Kit","　",null,"1/2 lane/sample","NovaSeqXの1/2レーンを使用してシーケンスを実施、条件が複雑な場合は特記事項にご記入ください。"]
["TruSeq Nano DNA Library","イルミナ用微量DNA用の全ゲノムライブラリー調製用Kit",null,"1/4 lane/sample","NovaSeqXの1/4レーンを使用してシーケンスを実施、条件が複雑な場合は特記事項にご記入ください。"]
["TruSeq DNA PCR-free Library","イルミナ用PCRフリーの全ゲノムライブラリー調製用Kit"]
["SMRTbell Prep Kit","PacBio用ライブラリー調製Kit"]
["SureSelect Human V6","ヒト用エクソン領域キャプチャーKit　キャプチャー領域約60Mb"]
["SureSelect Human V6 + COSMIC","ヒト用エクソン+COSMIC領域キャプチャーKit　キャプチャー領域約66Mb"]
["SureSelect Human V6 + UTR","ヒト用エクソン+UTR領域キャプチャーKit　キャプチャー領域約91Mb"]
["SureSelect Human V5","ヒト用エクソン領域キャプチャーKit　キャプチャー領域約50Mb"]
["SureSelect Human V7","ヒト用エクソン領域キャプチャーKit"]
["SureSelect Human V8","ヒト用エクソン領域キャプチャーKit"]
["SureSelect mouse","マウス用エクソン領域キャプチャーKit　キャプチャー領域約50Mb"]
["Twist Human Core Exome","　"]
["Twist Human Core Exome 2.0","　"]
["Twist Human Core Exome + RefSeq","　"]
["TruSeq stranded mRNA Library","真核生物のmRNA用Kit　PolyAセレクション後、ライブラリー調製を実施 "]
["TruSeq stranded Total RNA / Ribo-zero Plus","Bacteria・Human・Mouse・RatサンプルからrRNA除去後、ライブラリー調製を実施 "]
["TruSeq stranded Total RNA / Ribo-zero Gold","真核生物のTotal RNA用Kit　rRNA除去後ライブラリー調製を実施 "]
["TruSeq stranded Total RNA / Ribo-zero Globin","血液由来Total RNAからrRNA除去後、ライブラリー調製を実施 "]
["TruSeq stranded Total RNA / Ribo-zero Plant","植物の葉・種・根組織からrRNA除去後、ライブラリー調製を実施 "]
["TruSeq stranded Total RNA Library(bacteria)","BacteriaのRNA-Seq用Kit　rRNA除去後、ライブラリー調製を実施"]
["SMARTer stranded RNA (Ribo-Zero)","微量RNA用ライブラリー調製Kit　strand情報あり"]
["SMARTer stranded RNA (PolyA)","微量RNA用ライブラリー調製Kit　strand情報あり"]
["SMARTer Universal Low Input RNA Kit","微量RNA用ライブラリー調製Kit　分解が進んだRNA用"]
["SMART-Seq Ultra low input RNA Kit","微量RNA用ライブラリー調製Kit　strand情報なし　PolyAセレクションあり"]
["TruSeq RNA Exome(Access)","FFPEサンプルなど分解の進んだRNA用Kit 　デザイン済みプローブでcDNAをキャプチャー"]
["SureSelect RNA Direct","FFPEサンプルなど分解の進んだRNA用Kit 　デザイン済みプローブでcDNAをキャプチャー"]
["Accel-NGS Methyl-Seq DNA Library","全ゲノムバイサルファイトシーケンス用Kit　バイサルファイト処理込"]
["SureSelect Human Methyl-seq","　"]
["SureSelect Mouse Methyl-seq","　"]
["TruSeq ChIP Library","ChIPシーケンス用ライブラリー調製Kit"]
["16S rRNA(V3-V4)　1stPCRから","gDNAからの細菌メタゲノム解析用ライブラリー調製"]
["18S rRNA(ITS)　1stPCRから","gDNAからの真菌メタゲノム解析用ライブラリー調製"]
["Amplicon　2ndPCRから","1st PCR産物からのAmpliconシーケンス用ライブラリー調製"]
["TruSeq small RNA Library","mature miRNA解析用ライブラリー調製調製Kit　サイズセレクションあり"]
["SMARTer smRNA-Seq Kit","微量RNA用のsmall RNA用ライブラリー調製Kit"]
["NEBNext Small RNA library","血液由来RNA用のsmall RNA用ライブラリー調製Kit"]
["others","下の備考セルに使用するKitをご記入ください。"]
["調製済み","【C】index informationシートにもご記入をお願いします。"]
["Raw Data","fastqファイルでの納品(PacBio Sequelではfastaファイルとなります。)"]
["SNP/Short INDEL解析","リファレンス配列と比較したSNP/Short INDELの検出及びAnnotation"]
["SNP+CNV","リファレンス配列と比較したSNP/Short INDELの検出及びAnnotation, Copy Number Variant解析"]
["SNP+SV+CNV","リファレンス配列と比較したSNP/Short INDELの検出及びAnnotation及びStructual Variant, Copy Number Variant解析"]
["de novo Assembly","未知の配列のAssembly(Contig作成)　※データ解析備考欄にサンプルの推定ゲノムサイズをご記入ください。"]
["Assembly + Annotation","未知の配列のAssembly(Contig作成)及びAnnotation　※データ解析備考欄にサンプルの推定ゲノムサイズをご記入ください。"]
["FPKM/TPM","リファレンス配列へのMapping及びFPKM/TPMの算出のみ　※サンプル間の発現比較は行いません。"]
["DEG","リファレンス配列へのMapping及びサンプル間の発現比較　※【D】Comparison Pair informationシートに比較パターンをご記入ください。"]
["DEG + KEGG","リファレンス配列へのMapping及びサンプル間の発現比較及びKEGGパスウェイ解析　※【D】Comparison Pair informationシートに比較パターンをご記入ください。"]
["DEG + Splicing","ヒト、マウスのみ　サンプル間の発現比較及びAlternative Splicing解析　　※【D】Comparison Pair informationシートに比較パターンをご記入ください。"]
["DEG + Splicing + Fusion Gene","ヒトのみ　サンプル間の発現比較及びAlternative Splicing、Fugion Gene解析　　※【D】Comparison Pair informationシートに比較パターンをご記入ください。"]
["DEG + Splicing + KEGG","ヒト、マウスのみ　サンプル間の発現比較及びAlternative Splicing解析及びKEGGパスウェイ解析　※【D】Comparison Pair informationシートに比較パターンをご記入ください。"]
["de novo Assembly + DEG","RNA-Seq結果のAssembly、発現量比較"]
["small RNA profiling","small RNA profilingのプロファイリングのみ実施、発現比較無し"]
["small RNA profiling, DEmiRNA","small RNA profilingのプロファイリングのみ実施、mirBaseに登録されているmiRNAの発現量比較"]
["Mapping, Peak calling(ChIP-Seq)","ChIP-Seq用のPeak calling"]
["Methylation Calling","メチル化比率の定量"]
["Methylation Calling, Differentially Analysis","メチル化比率の定量,メチル化比率の比較"]
["sgRNA Count","sgRNA ライブラリのカウント"]
["Cell Ranger Analysis","scRNA-Seq結果のCell Ranger解析"]
["Mapping","リファレンス配列にMappingを行い、bamファイルの作成のみを実施"]
["ASV","細菌叢解析"]
["others","打合せの内容をデータ解析備考欄にご記入下さい。"]
["ダウンロード納品","データ量が60Gbyte以上の際はHDD納品をお願いしております。"]
["HDD納品　※追加費用あり","HDDはNTFSフォーマットになります。また、Windowsでのみ解除可能なロックが掛かっています。"]
["HDD納品(個人情報保護便輸送)　※追加費用あり","HDDはNTFSフォーマットになります。また、Windowsでのみ解除可能なロックが掛かっています。"]
[]
["希望しない","　"]
["希望する　※追加費用あり","解析終了後サンプル返送までに1ヵ月程度お時間をいただくことがございます。"]
[]
["吸光度(NanoDrop等)"]
["蛍光法(Qubit等)"]
["BioAnalyzer"]
["qPCR"]
[]
["gDNA","　"]
["Total RNA","　"]
["mRNA","　"]
["調製済library","【C】index informationシートもご記入ください。"]
["ChIP Sample","　"]
["PCR Product(精製済)","下のセルにアンプリコンサイズをご記入ください。"]
["PCR Product(未精製)　※追加費用が掛かることがあります","下のセルにアンプリコンサイズをご記入ください。"]
["Low mol weight DNA (<800bp)","　"]
["cDNA","　"]
["Plasmid","　"]
["Cosmid/Fosmid","　"]
["BAC","　"]
["核酸抽出からご依頼のサンプル※追加費用あり","【E】Sample Prep. Informationシートもご記入ください。"]
["Other　※右下のセルに詳細をご記入ください。","　"]
[]
["全血"]
["FFPE"]
["Exosome"]
["マウステール"]
["それ以外(組織、細胞など)"]
["〇"]
["-"]
["自動進行\n(QC Passしない場合はSTOP)","QCをパスしたサンプルから自動的に次のステップに進行します。\nHoldまたはFail判定の場合は進行をSTOPし、必ずご相談致します。"]
["QC後必ずSTOP\n(全てPassでもSTOP)","QC結果をご報告後、進行の指示をいただいてから次のステップに進行します。自動進行より1週間以上納期が遅れることがございます。"]
[]
[]
["Human"]
["Mouse"]
["Rat"]
["Human/Mouse Xenograft"]
["Other Animal (下段に生物種を学名でご記入ください)"]
["Plant(下段に生物種を学名でご記入ください)"]
["Fungi(下段に生物種を学名でご記入ください)"]
["Prokaryote(下段に生物種を学名でご記入ください)"]
["others(下段に生物種を学名でご記入ください)"]
[]
["新規ご依頼のサンプル"]
["再送サンプル(右のセルにOrder No.をご記入ください)"]
[]
["単体"]
["平均"]
[]
["濃度(ng/ul)"]
["濃度(nM)"]
[]
["NovaSeq_どちらでも可","NovaSeq_X もしくは NovaSeq6000 のどちらかでシーケンス進行します"]
["NovaSeq_X_Plus","データ容量が100Gbyteを越える際はHDD納品必須となります"]
["NovaSeq6000","データ容量が100Gbyteを越える際はHDD納品必須となります"]
["MiSeq","データ容量が100Gbyteを越える際はHDD納品必須となります"]
["NextSeq","データ容量が100Gbyteを越える際はHDD納品必須となります"]
["PacBio_SequelⅡ","データ容量が100Gbyteを越える際はHDD納品必須となります"]
["PacBio_Revio","データ容量が100Gbyteを越える際はHDD納品必須となります"]
["others","データ容量が100Gbyteを越える際はHDD納品必須となります"]
[]
["ヒト_マウス_ラット_その他動物","細胞","凍結組織","FFPE組織","全血","血清","血漿","バフィーコート","唾液","口腔スワブ","その他"]
["植物","葉","根","茎","花","種","その他"]
["真菌_酵母以外","菌体ペレット","その他"]
["酵母","菌体ペレット","その他"]
["原生生物","詳細を下のセルに記入してください"]
["グラム陽性細菌","菌体ペレット","その他"]
["グラム陰性細菌","菌体ペレット","その他"]
["古細菌","詳細を下のセルに記入してください"]
["その他","詳細を下のセルに記入してください"]
[]
["ヒト_マウス_ラット_その他動物"," "]
["細胞"," "]
["凍結組織"," "]
["FFPE組織"," "]
["全血"," "]
["血清","国内での抽出作業は対応しておりません。"]
["血漿","国内での抽出作業は対応しておりません。"]
["バフィーコート","　"]
["唾液","　"]
["口腔スワブ","国内での抽出作業は対応しておりません。"]
["その他","詳細を下のセルにご記入ください。"]
["葉"," "]
["根"," "]
["茎"," "]
["花"," "]
["種"," "]
["菌体ペレット"," "]
["詳細を下のセルに記入してください","　"]
["選択してください"," "]
[]
["ヒト_マウス_ラット_その他動物"," "]
["植物"," "]
["真菌_酵母以外"," "]
["酵母"," "]
["原生生物","国内での抽出作業は対応しておりません。"]
["グラム陽性細菌"," "]
["グラム陰性細菌"," "]
["古細菌","国内での抽出作業は対応しておりません。"]
["その他"," "]
["選択してください"," "]